Cogmind - Beta 13 @@@ ROGUE MODE // 2024.05.22 @ 17:51:59 Player: N.W.L Result: Escaped! Performance ------------- Evolutions (9) 4500 Regions Visited (33) 6600 Robots Destroyed (597) 2985 Value Destroyed (25895) 25895 Prototype IDs (123) 2460 Alien Tech Used (2) 400 Bonus (22842) 22842 TOTAL SCORE: 65682 Bonus ------- High Alert Combat Kills 7854 Follower Combat Kills 2740 Entered Garrisons 400 Network Hubs Disabled 400 Aligned with FarCom 300 Acquired ECA 300 Met Zhirov 300 Met Warlord at Base 500 MAIN.C Attacked Warlord 500 Warlord Defense Kills 366 Built Enhanced Grunts 300 A7 Reached Mainframe 300 Met R17 at Cetus 500 Met R17 at Research 2000 Met Warlord at Research 2000 Scanned by Researcher 500 Acquired SGEMP 2000 Delivered SGEMP 2000 Win 3000 Friendly Fire -3418 Cogmind --------- Core Integrity 1206/1600 Matter 183/300 Energy 1181/1200 System Corruption 5% Temperature Cool (12) Movement Treading (160) Location To Epsilon Eridani Parts ------- > --- POWER (2) -------- Quantum Reactor Reinforced Quantum Reactor > --- PROPULSION (6) --- Medium Treads Medium Treads Medium Treads Medium Treads Advanced Heavy Siege Treads > --- UTILITY (13) ----- Coolant Network Experimental Coolant Injector Experimental Coolant Injector Huge Storage Unit Experimental Energy Well Experimental Targeting Computer Experimental Target Analyzer Experimental Core Analyzer Experimental Armor Integrity Analyzer Deep Network Scanner Quantum Router > --- WEAPON (4) ------- Enhanced Quantum Rifle Cooled Phase Cannon Compact Linear Accelerator Improved Plasma Cutter > --- INVENTORY (25) --- Light Antimatter Reactor Quantum Reactor Quantum Reactor Light Quantum Reactor Improved Quantum Reactor Advanced Heavy Siege Treads Centrium Wheel Centrium Wheel Diametric Drive Advanced Cryofiber Web Experimental Coolant Injector Compact Matter Pod (150) Matter Compressor (250) Transdimensional Reconstructor Enhanced Quantum Rifle Multirail Multirail Neutron Missile Launcher Advanced Remote Datajack Plasma Lance Vortex Lance (40) Vortex Lance (40) Peak State ------------ > --- POWER ------------ Reinforced Quantum Reactor Reinforced Quantum Reactor > --- PROPULSION ------- Advanced Heavy Treads Biometal Heavy Treads Experimental Biometal Medium Treads Centrium Wheel > --- UTILITY ---------- Coolant Network Huge Storage Unit Experimental Targeting Computer Experimental Target Analyzer Experimental Core Analyzer Experimental Armor Integrity Analyzer Centrium Light Armor Plating Centrium Light Armor Plating Deep Network Scanner Quantum Router Advanced Corruption Screen Sensor Drone Bay > --- WEAPON ----------- Cooled Phase Cannon Enhanced Nova Cannon Linear Accelerator Compact Linear Accelerator > --- INVENTORY -------- Improved Quantum Reactor Advanced Cryofiber Web Coolant Network 2N-1CE's Frost Array Experimental Energy Well Compact Matter Pod Matter Compressor Improved Kinecellerator Advanced Weapon Cycler Heavy Reflective Plating Transdimensional Reconstructor Improved Potential Cannon Multirail Multirail Linear Accelerator Vortex Catalyst Activator Advanced Remote Datajack Improved Plasma Cutter Molecular Scythe Vortex Lance Vortex Lance [Rating: 233] Favorites ----------- Power Improved Deuterium Engine Engine Improved Deuterium Engine Power Core Fission Core Reactor Improved Quantum Reactor Propulsion Armored Huge Wheel Treads Light Treads Leg Carbon-fiber Leg Wheel Armored Huge Wheel Hover Unit Cooled Antigrav System Flight Unit Electron Diverter Utility Huge Storage Unit Device Sensor Drone Bay Storage Huge Storage Unit Processor Experimental Targeting Computer Hackware Ghost Barrier Protection Centrium Medium Armor Plating Artifact Phase Redirector Weapon Advanced KE Penetrator Energy Gun Advanced Variable Charge Gun Energy Cannon Nova Cannon Ballistic Gun Advanced KE Penetrator Ballistic Cannon Gauss Cannon Launcher Heavy Proton Missile Launcher Special Weapon Advanced Remote Datajack Impact Weapon Heavy Flail Slashing Weapon Scythe Piercing Weapon CR-A16's Pointy Stick Special Melee Weapon Improved Datajack Build | -11 -10 -10 -10 -9 -8 -8 -8 -7 -7 -7 -7 -6 -6 -6 -6 -6 -6 -6 -5 -5 -5 -5 -4 -4 -4 -4 -4 -3 -3 -3 -2 -2 -1 ------- Run | Yrd Mat Min Exi Min Mat Gar Mat Fac Low Low Zio Pro Fac Gar Ext Cet Arc Hub Fac Upp Upp War Pro Fac Upp Upp Zhi Pro Res Qua Res Tes Acc Slots Evolved 18 | . . . . . 4 . . 2 . . . . 2 . . . . . 2 . . . . 2 . . . . 2 . 2 . 2 Power 1 | . . . . . . . . . . . . . . . . . . . . . . . . . . . . . 1 . . . . Propulsion 4 | . . . . . 2 . . . . . . . 2 . . . . . . . . . . . . . . . . . . . . Utility 11 | . . . . . 2 . . 2 . . . . . . . . . . 1 . . . . 2 . . . . 1 . 1 . 2 Weapon 2 | . . . . . . . . . . . . . . . . . . . 1 . . . . . . . . . . . 1 . . Parts Attached 613 | 8 10 15 1 . 44 12 31 26 19 10 11 7 6 31 36 22 6 23 23 18 3 25 3 4 4 7 6 6 42 26 17 58 53 Power 36 | 1 1 1 . . 1 1 4 2 2 . . . 1 2 1 . . . 1 . . 2 . . . . 1 . 1 2 4 4 4 Engine 12 | 1 . 1 . . . 1 2 2 2 . . . 1 1 . . . . . . . . . . . . . . . 1 . . . Core 8 | . 1 . . . 1 . 2 . . . . . . 1 1 . . . 1 . . 1 . . . . . . . . . . . Reactor 16 | . . . . . . . . . . . . . . . . . . . . . . 1 . . . . 1 . 1 1 4 4 4 Propulsion 76 | 2 4 4 . . 11 1 3 1 1 4 . . 1 4 9 3 . . 2 . . 5 . . 1 . . . 2 1 1 5 11 Treads 42 | 2 2 2 . . 9 . . . . 2 . . 1 . 5 1 . . 1 . . . . . 1 . . . 2 1 1 5 7 Leg 10 | . . . . . . . . . . 2 . . . 4 2 . . . . . . 2 . . . . . . . . . . . Wheel 20 | . 2 2 . . 2 1 3 1 1 . . . . . 2 2 . . 1 . . . . . . . . . . . . . 3 Hover 2 | . . . . . . . . . . . . . . . . . . . . . . 2 . . . . . . . . . . . Flight 2 | . . . . . . . . . . . . . . . . . . . . . . 1 . . . . . . . . . . 1 Utility 225 | 2 4 9 1 . 6 2 9 9 6 2 6 5 1 12 18 7 4 6 10 5 2 5 . 2 . 7 1 1 23 15 7 16 22 Device 139 | 1 1 8 . . 2 1 5 2 5 2 4 5 . 8 14 5 2 4 5 3 1 2 . . . 7 . 1 16 10 4 8 13 Storage 8 | 1 2 . 1 . . . 1 1 . . . . . . . . . . . . . . . . . . . . . . . 1 1 Processor 11 | . . . . . . . 1 . . . 1 . 1 . . . . 1 . . . 1 . . . . . . 1 . 2 3 . Hackware 6 | . . . . . 2 . . . . . . . . . . . . . . . . 1 . . . . . . . . 1 . 2 Protection 60 | . 1 1 . . 2 1 2 6 1 . 1 . . 4 4 2 2 1 5 2 1 1 . 2 . . 1 . 6 4 . 4 6 Artifact 1 | . . . . . . . . . . . . . . . . . . . . . . . . . . . . . . 1 . . . Weapon 276 | 3 1 1 . . 26 8 15 14 10 4 5 2 3 13 8 12 2 17 10 13 1 13 3 2 3 . 4 5 16 8 5 33 16 Energy Gun 17 | . . . . . 2 . . . . . 1 . . . . 2 2 2 2 . . . 1 . 2 . . . . . 1 1 1 Energy Cannon 65 | . . . . . 1 . 8 4 4 . . . 1 1 1 1 . 1 3 3 . 2 . . . . . 2 6 3 1 18 5 Ballistic Gun 35 | 3 1 . . . . . . . . . . . . . . 2 . 7 3 5 1 4 1 1 . . . . 2 1 1 3 . Ballistic Cannon 51 | . . 1 . . 8 4 . 5 1 2 1 . 1 7 2 2 . . . . . 2 . . . . 1 . 2 1 . 5 6 Launcher 67 | . . . . . 6 4 6 3 5 2 . 1 . 4 4 1 . 4 1 5 . 2 1 1 1 . . 3 3 3 1 3 3 Special Weapon 12 | . . . . . . . . . . . . . . . . 4 . 1 . . . 1 . . . . 2 . 1 . 1 1 1 Impact Weapon 11 | . . . . . 6 . 1 2 . . . . . . . . . . . . . . . . . . . . 1 . . 1 . Slashing Weapon 5 | . . . . . 3 . . . . . 1 . . . . . . . . . . . . . . . . . . . . 1 . Piercing Weapon 8 | . . . . . . . . . . . 2 1 1 1 . . . 1 . . . 1 . . . . . . 1 . . . . Special Melee Weapon 5 | . . . . . . . . . . . . . . . 1 . . 1 1 . . 1 . . . . 1 . . . . . . Unidentified Prototypes 57 | . . 1 . . 2 . 1 1 . . 1 . . . . 4 . 4 1 . . 8 . . . . 2 . 9 1 3 15 4 Corrupted Parts 3 | . . . . . . . . . . . . . . . . 1 . 2 . . . . . . . . . . . . . . . System Corruption 15 | . . . . . . . . . . . . . . . . 2 . 13 . . . . . . . . . . . . . . . Parts Lost 83 | . 4 3 . . 1 2 7 4 6 1 . . . 12 6 . . 2 2 . . . . . 1 . . . 1 5 1 6 19 Power 11 | . 1 1 . . 1 1 2 . 1 . . . . 2 . . . . . . . . . . . . . . . 1 . . 1 Propulsion 19 | . 1 1 . . . . 1 1 2 . . . . 3 . . . . 1 . . . . . 1 . . . . 1 . 3 4 Utility 37 | . 1 1 . . . 1 3 3 3 1 . . . 4 5 . . . 1 . . . . . . . . . 1 3 1 1 8 Weapon 16 | . 1 . . . . . 1 . . . . . . 3 1 . . 2 . . . . . . . . . . . . . 2 6 Highest Loss Streak 8 | . 3 2 . . 1 1 2 2 4 1 . . . 5 2 . . 2 1 . . . . . 1 . . . 1 2 1 2 8 To Critical Strikes 3 | . . . . . . . 1 . . . . . . . . . . . . . . . . . 1 . . . . . . 1 . Average Slot Usage (%) 84 | . 96 99 100 100 87 72 70 83 80 90 91 92 85 75 84 80 77 78 81 80 82 80 82 84 83 84 79 84 78 79 84 82 81 Engine 2 | . 1 9 14 14 5 4 5 6 6 7 7 7 6 4 1 . . . . . . . . . . . . . . . . . . Core 2 | . 12 4 . . 3 4 3 . . . . . . . 4 6 6 6 5 5 5 4 . . . . . . . . . . . Reactor 2 | . . . . . . . . . . . . . . . . . . . . . . . 5 5 5 5 5 5 4 3 7 7 7 Treads 8 | . 19 16 14 14 30 . . . . 5 7 7 12 3 10 . . . . 5 5 3 . . 2 5 5 5 10 14 13 12 10 Leg 2 | . . . . . . . . . . 6 7 7 6 14 5 . . . . . . 1 5 5 5 5 5 5 1 . . . . Wheel 7 | . 8 11 14 14 2 18 17 15 12 7 7 7 6 1 9 19 20 20 15 11 11 11 11 10 7 5 5 5 1 . . . 4 Device 15 | . 8 13 14 14 9 9 8 16 21 23 29 30 21 15 17 12 15 20 15 14 17 17 17 15 15 15 15 15 20 19 16 9 7 Storage 6 | . 15 14 14 14 9 9 9 7 7 7 7 7 6 6 6 6 6 6 5 5 5 5 5 5 5 5 5 5 4 4 4 5 6 Processor 6 | . . . . . . . . 7 7 6 . . 4 6 . . . . 5 5 5 6 11 10 10 10 10 10 10 11 12 18 18 Hackware 2 | . . . . . . . . . . . . . . . . . . . . . . 1 5 5 5 5 5 5 4 4 7 7 7 Protection 7 | . 1 . . . 8 9 8 12 7 7 7 7 6 5 13 19 14 11 12 14 11 8 . 10 10 10 10 10 4 5 4 3 4 Energy Cannon 2 | . . . . . . 9 12 3 6 . . . 5 3 2 . . . 3 2 . 2 . . . . . 2 6 2 4 6 6 Ballistic Gun 3 | . 27 25 14 14 . . . . . . . . . . . 4 1 4 7 10 16 8 1 1 . . . . . 3 4 3 . Ballistic Cannon 5 | . . 2 14 14 12 5 . 6 5 14 9 . . 7 7 . . . . . . . 5 5 5 5 . 5 1 3 4 2 6 Launcher 1 | . . . . . 1 3 3 . 2 . . 6 . 1 1 . . . . 2 . . . 3 4 . . 2 1 1 2 . . Naked Turns . | . . . . . . . . . . . . . . . . . . . . . . . . . . . . . . . . . . Heaviest Build 204 | 14 88 109 109 109 121 133 133 125 125 129 129 125 116 126 132 134 134 134 141 151 145 156 156 170 170 166 164 167 190 163 181 179 204 Greatest Support 225 | 40 40 40 16 20 80 56 56 56 56 28 28 28 28 60 65 84 84 84 84 56 56 56 56 56 56 28 28 28 215 215 210 225 192 Greatest Overweight (x) 38 | . 8 8 6 6 5 2 4 2 4 6 4 4 4 38 5 4 1 1 2 2 2 2 2 3 6 5 5 5 6 . . 1 12 Average Overweight (x) 2 | . 3 5 6 5 1 2 1 1 2 5 3 3 3 3 1 2 1 1 1 2 2 2 2 2 4 5 4 5 2 . . . 2 Largest Inventory Capacity 25 | 8 25 25 25 25 25 25 25 25 25 25 25 25 25 25 25 25 25 25 25 25 25 25 25 25 25 25 25 25 25 25 25 25 25 Average Capacity 24 | 7 14 25 25 25 25 25 25 25 25 25 25 25 25 25 25 25 25 25 25 25 25 25 25 25 25 25 25 25 25 25 25 25 25 Most Carried 25 | 6 14 25 25 25 25 25 25 25 25 25 25 25 25 25 25 25 25 25 25 25 25 25 25 24 24 25 25 25 25 25 25 25 25 Average Carried 23 | 3 8 19 22 24 24 24 23 23 23 24 24 24 24 24 23 24 24 24 24 24 25 24 24 23 23 24 24 24 24 24 24 24 21 Final Capacity 25 | 8 25 25 25 25 25 25 25 25 25 25 25 25 25 25 25 25 25 25 25 25 25 25 25 25 25 25 25 25 25 25 25 25 25 Final Carried 25 | 5 14 20 25 25 25 24 22 25 25 25 25 25 25 23 25 25 25 25 25 25 25 25 25 24 23 25 25 25 25 22 25 24 23 Class Distribution -------------------- 46% | Mutant 18% | Scavenger-Gunner 14% | Hacker-Gunner 10% | Scavenger-Tank 5% | Commander-Mutant 3% | Scavenger-Mutant Dominant Class ---------------- Mutant | -10/Materials Mutant | -10/Mines Mutant | -10/Exiles Mutant | -9/Mines Mutant | -8/Materials Mutant | -8/Garrison Mutant | -8/Materials Mutant | -7/Factory Mutant | -7/Lower Caves Mutant | -7/Lower Caves Mutant | -7/Zion Mutant | -6/Proximity Caves Mutant | -6/Factory Scavenger-Mutant | -6/Garrison Mutant | -6/Extension Commander-Mutant | -6/Cetus Commander-Mutant | -6/Archives Commander-Mutant | -6/Hub_04(d) Scavenger-Tank | -5/Factory Scavenger-Tank | -5/Upper Caves Scavenger-Tank | -5/Upper Caves Commander-Mutant | -5/Warlord Hacker-Gunner | -4/Proximity Caves Scavenger-Gunner | -4/Factory Scavenger-Gunner | -4/Upper Caves Scavenger-Gunner | -4/Upper Caves Scavenger-Mutant | -4/Zhirov Scavenger-Gunner | -3/Proximity Caves Hacker-Gunner | -3/Research Scavenger-Gunner | -3/Quarantine Hacker-Gunner | -2/Research Scavenger-Gunner | -2/Testing Hacker-Gunner | -1/Access Resources | -11 -10 -10 -10 -9 -8 -8 -8 -7 -7 -7 -7 -6 -6 -6 -6 -6 -6 -6 -5 -5 -5 -5 -4 -4 -4 -4 -4 -3 -3 -3 -2 -2 -1 ----------- Run | Yrd Mat Min Exi Min Mat Gar Mat Fac Low Low Zio Pro Fac Gar Ext Cet Arc Hub Fac Upp Upp War Pro Fac Upp Upp Zhi Pro Res Qua Res Tes Acc Matter Collected 16290 | 352 501 167 . 91 1498 333 570 602 380 351 147 74 90 858 727 244 121 463 631 413 72 343 277 30 292 429 50 321 801 1190 770 1363 1739 Remotely . | . . . . . . . . . . . . . . . . . . . . . . . . . . . . . . . . . . Salvage Created 23731 | 128 927 80 . 77 1619 545 1721 805 412 272 . 182 155 844 319 92 324 967 1324 819 29 282 219 64 312 296 225 393 846 1297 850 3169 4137 Parts 1054 | 12 53 5 . . 78 52 101 48 15 7 . 3 6 47 17 2 24 48 59 22 1 9 3 3 9 19 2 30 21 65 19 134 140 Haulers Intercepted 28 | . 2 . . . 4 . 5 1 . . . . . . . . . 2 3 . . . . . . . . . 3 1 3 1 3 Recyclers Shooed 13 | . 5 1 . 1 2 . 1 . . . . . . . . . . . 1 . . . . . . . . . . . . 1 1 Parts Field Recycled . | . . . . . . . . . . . . . . . . . . . . . . . . . . . . . . . . . . Retrieved Matter . | . . . . . . . . . . . . . . . . . . . . . . . . . . . . . . . . . . Parts Self-Destructed 74 | . . . . . . . . . 14 8 . 4 . . . . . . . 8 . . 3 . 1 18 2 16 . . . . . Prevented 27 | . . . . . . . . . . . . . . . . . . . . 12 . . . . 3 . . 12 . . . . . Kills | -11 -10 -10 -10 -9 -8 -8 -8 -7 -7 -7 -7 -6 -6 -6 -6 -6 -6 -6 -5 -5 -5 -5 -4 -4 -4 -4 -4 -3 -3 -3 -2 -2 -1 ------- Run | Yrd Mat Min Exi Min Mat Gar Mat Fac Low Low Zio Pro Fac Gar Ext Cet Arc Hub Fac Upp Upp War Pro Fac Upp Upp Zhi Pro Res Qua Res Tes Acc Combat Hostiles Destroyed 428 | . 12 4 . . 35 28 42 17 13 8 . 3 1 34 13 2 . 8 14 14 . 2 3 4 3 7 . 12 9 26 7 41 66 Melee 3 | . . . . . 2 . . 1 . . . . . . . . . . . . . . . . . . . . . . . . . Guns 47 | . 12 2 . . . . . . . . . . . . . . . 3 11 3 . . . . . 1 . . 1 4 . 9 1 Cannons 164 | . . 2 . . 18 13 14 10 4 3 . . 1 16 7 . . . 2 . . 1 2 2 1 6 . 3 6 7 2 16 28 AOE 193 | . . . . . 11 15 25 6 8 5 . 3 . 18 6 2 . 5 1 10 . . . 2 2 . . 9 . 13 5 11 36 Classes Destroyed 30 | 2 7 1 . . 2 1 4 . 1 1 . . . 1 . . . 1 . . 1 2 . . 1 . . 1 1 2 . . 1 Worker 33 | . 1 1 . . 3 . 5 . . . . . . . . . . 8 2 . . . . . . . . . . 7 . 1 5 Builder 32 | . 1 . . . 4 . 5 4 . . . . . . 2 . . . 1 . . . . . . . . . . 7 . 4 4 Tunneler 7 | 4 1 . . . 1 . . . . . . . . . . . . 1 . . . . . . . . . . . . . . . Hauler 28 | . 2 . . . 4 . 5 1 . . . . . . . . . 2 3 . . . . . . . . . 3 1 3 1 3 Recycler 24 | 1 3 . . . 6 . 1 1 . . . . 1 . . . . 1 1 . . . . . . . . . . 1 1 5 2 Minesweeper 2 | . . . . . . . . . . . . . . . . . . . . . 1 . . . . 1 . . . . . . . Mechanic 5 | . . . . . . . 1 . . . . . . . 1 . . . . . . . . . . . . . . . . 1 2 Operator 18 | . 1 . . . 2 . 1 . . . . . . . . . 9 1 . . . . . . . . . . . . 2 2 . Drone 2 | . . . . . . . . . . . . . . . . . . . . . . . . . . . . 2 . . . . . Watcher 19 | . 3 . . . 3 . 2 1 . . . . 1 . . . . . 1 . . . . . . . . . . 2 . 2 4 Swarmer 97 | . 3 2 . . 10 16 8 4 3 1 . 1 . 11 3 . . 1 . 5 . . . 4 . . . 9 1 . . 5 10 Cutter 6 | . . . . . . . . . . . . . . 6 . . . . . . . . . . . . . . . . . . . Saboteur 4 | . . . . . . . . . . . . . . . . . . 1 . . . . . . . . . . . 1 . . 2 Grunt 160 | . 9 . . . 20 8 22 7 7 . . 1 . 7 4 2 . 1 7 6 . . 3 . . 2 . . 3 6 4 14 27 Brawler 15 | . . . . . . . 1 1 1 . . . . . 1 . . 1 . 1 . 1 . . . . . . . 2 . . 6 Duelist 12 | . . . . . 1 . 2 . 1 . . . . 2 . . . . . . . . . . . . . . . . . . 6 Protector 4 | . . . . . . . 2 . . . . . . . . . . 1 . . . 1 . . . . . . . . . . . Researcher 3 | . . . . . . . . . . . . . . . . . . . . . . . . . . . . . . 1 . 2 . Sentry 37 | . . . . . 4 3 6 3 . . . 1 . 6 4 . . . 2 1 . . . . . . . . . 4 . . 3 Demolisher 4 | . . . . . . . . . . . . . . . . . . . . . . 1 . . . . . . 3 . . . . Hunter 17 | . . . . . . . 1 . . . . . . . 1 . . 1 . . . 1 . . 2 . . . . 4 . 5 2 Programmer 47 | . . . . . . 1 . 2 . . . . 1 1 . . . . 5 1 . . . . . 5 . 1 . 8 1 14 7 Q-Series 2 | . . . . . . . . . . . . . . . . . . . . . . . . . . . . . . . . . 2 Behemoth 2 | . . . . . . . . . 1 . . . . . . . . . . . . . . . . . . . . . . . 1 Enhanced Grunt 1 | . . . . . . . . . . . . . . . . . . 1 . . . . . . . . . . . . . . . Lightning 2 | . . . . . . . . . . . . . . . . . . 2 . . . . . . . . . . . . . . . Striker 4 | . . . . . . . . . . . . . . . . . . . . . . . . . . . . . 2 . . 2 . Executioner 3 | . . . . . . . . . . . . . . . . . . . . . . 1 . . . . . . . . 2 . . Alpha 7 2 | . . . . . . . . . . . . . . . . . . . . . . . . . . . . . . 1 . 1 . Master Thief 1 | . . . . . . . . . . . . . . . . . . . . . . . . . 1 . . . . . . . . Assembled 2 | . . 2 . . . . . . . . . . . . . . . . . . . . . . . . . . . . . . . Wasp 1 | . . . . . . . . . . . . . . . . . . . . . . . . . . . . . . . 1 . . Thug 3 | . . . . . . . . . . 1 . . . 1 . . . 1 . . . . . . . . . . . . . . . Savage 1 | . . . . . . . . . . 1 . . . . . . . . . . . . . . . . . . . . . . . Butcher 4 | . . . . . . . . . . 4 . . . . . . . . . . . . . . . . . . . . . . . Mutant 1 | . . . . . . . . . . 1 . . . . . . . . . . . . . . . . . . . . . . . Best Kill Streak 21 | 2 7 2 . . 6 11 13 6 3 7 . 3 2 10 8 2 2 5 4 5 1 1 3 3 2 2 . 5 2 20 7 21 18 Combat Bots Only 15 | . 6 2 . . 4 11 12 4 3 7 . 3 1 10 5 2 . 4 3 5 . 1 3 3 2 2 . 5 2 10 7 6 15 Max Kills in Single Turn 9 | 1 1 2 . 1 3 3 9 3 3 3 . 3 1 4 5 2 1 5 2 2 1 2 1 2 1 1 . 2 1 5 5 6 9 Gunslinging 1 | . . 1 . . . . . . . . . . . . . . . . . . . . . . . . . . . . . . . Exploded 9 | . . . . . 3 3 9 3 3 3 . 3 . 4 3 2 . 2 1 2 . . . 2 1 . . 2 . 3 5 2 8 Melee 1 | . . . . . 1 . . 1 . . . . . . . . . . . . . . . . . . . . . . . . . Uniques/NPCs Destroyed 1 | . . . . 1 . . . . . . . . . . . . . . . . . . . . . . . . . . . . . YI-UF0 (-9/Mines) Combat | -11 -10 -10 -10 -9 -8 -8 -8 -7 -7 -7 -7 -6 -6 -6 -6 -6 -6 -6 -5 -5 -5 -5 -4 -4 -4 -4 -4 -3 -3 -3 -2 -2 -1 -------- Run | Yrd Mat Min Exi Min Mat Gar Mat Fac Low Low Zio Pro Fac Gar Ext Cet Arc Hub Fac Upp Upp War Pro Fac Upp Upp Zhi Pro Res Qua Res Tes Acc Hostile Shots Fired 2309 | . 75 36 . . 130 69 168 101 64 35 . 3 7 387 131 5 9 36 90 25 . 25 8 17 20 24 . 23 46 180 33 343 219 Missed 675 | . 22 9 . . 32 23 45 31 19 9 . . 3 109 49 2 4 8 22 8 . 12 5 5 10 8 . 7 12 40 11 105 65 Intercepted 5 | . . . . . . . . . . . . . . . . . . . . . . . . . . . . . 5 . . . . Damage Taken 28869 | . 596 330 . . 1325 597 1932 733 872 346 . 91 59 3038 1069 37 146 992 1831 320 . 427 62 229 110 160 . 325 757 2987 486 4981 4031 Core 2433 | . 90 26 . . 13 25 197 31 54 11 . 28 15 296 73 . 43 146 478 41 . 43 . 31 . 10 . 31 . 131 27 199 394 Absorbed by Shields 1563 | . . . . . . . . . . . . . . 30 174 37 . . . . . 35 . . . 62 . 23 478 . 83 641 . Reduced by Siege Mode 598 | . . . . . . . . . . . . . . . . . . . . . . . . . . . . . 29 273 90 149 57 Redirected to Shielding 19 | . 19 . . . . . . . . . . . . . . . . . . . . . . . . . . . . . . . . Ignored by Resistances 914 | . . . . . . . . 14 85 25 . 3 . 81 29 . . . 33 . . . . . . 108 . . . 488 . . 48 Regen/Repaired (Parts) 1171 | . . . . . . . . . . . 860 . . . . . . . 245 . . 66 . . . . . . . . . . . Core Remaining (%) 70 | 100 . . . 53 . . 57 . . . . 82 . . . . . 32 . . . . 43 . . . . 93 . 89 . 84 75 Volleys Fired 1411 | 18 107 12 . 17 122 75 119 67 28 23 . 2 19 69 51 5 35 41 60 22 3 21 63 7 6 29 14 22 54 64 28 104 104 Largest 4 | 2 2 2 . 2 2 2 2 2 2 2 . 1 2 2 2 1 2 2 3 3 3 2 2 2 2 2 1 2 3 3 4 4 4 Hottest 383 | 40 40 64 . 64 124 124 160 96 170 110 . 36 133 138 106 36 160 240 205 110 105 130 130 130 130 170 20 130 226 221 286 383 336 Shots Fired 2409 | 36 213 24 . 29 192 96 168 95 47 46 . 2 22 106 72 6 60 62 133 47 9 30 66 10 11 42 14 26 95 153 70 196 231 Gun 781 | 36 213 20 . 17 2 . . . . . . . . . . 1 60 53 97 30 9 8 57 1 2 24 . . 13 47 19 58 14 Cannon 1437 | . . 4 . 12 173 83 148 91 36 34 . . 22 96 63 . . 2 36 6 . 21 6 7 4 18 . 16 79 85 48 135 212 Launcher 169 | . . . . . 17 13 20 4 11 12 . 2 . 10 9 1 . 6 . 11 . 1 3 2 5 . . 10 1 21 2 3 5 Special 22 | . . . . . . . . . . . . . . . . 4 . 1 . . . . . . . . 14 . 2 . 1 . . Kinetic 1268 | 36 213 24 . 29 163 16 4 49 11 28 . . 3 68 36 . 4 41 79 30 9 15 9 8 4 18 . 8 26 93 36 105 103 Thermal 922 | . . . . . 12 67 144 42 25 6 . . 19 28 27 1 56 12 54 6 . 11 54 . 2 24 14 8 47 38 27 80 118 Explosive 133 | . . . . . 17 13 20 4 11 12 . 2 . 10 9 1 . 6 . . . . . . . . . . . 21 2 3 2 Electromagnetic 77 | . . . . . . . . . . . . . . . . . . 2 . 11 . 4 3 2 5 . . 10 22 1 4 8 5 Entropic 3 | . . . . . . . . . . . . . . . . . . . . . . . . . . . . . . . . . 3 Robot Hit Streak 26 | 4 13 7 . 12 11 16 17 7 7 5 . 2 4 12 14 9 12 7 13 14 14 3 5 4 5 12 14 11 12 23 15 20 26 Robot Miss Streak 7 | 4 4 2 . 3 4 4 3 6 3 4 . . 4 5 7 . 4 5 3 2 1 4 1 2 1 1 2 1 4 3 1 4 4 Penetration Max 1 | . . . . . . . . . . . . . 1 . . . . 1 1 . . 1 . . . . . . 1 1 . 1 . Secondary Targets 7 | . 3 1 . . . . . . . . . . . . . . . . 3 . . . . . . . . . . . . . . Max Gunslinging Chain 1 | . 1 1 . . . . . . . . . . . . . . . . 1 . . . . . . . . . . . . . . Shots Hit Robots 1449 | 18 133 19 . 21 126 40 105 47 31 22 . 6 7 75 51 5 43 30 76 26 7 31 7 5 8 23 13 10 55 97 43 120 149 Core Hits 1076 | 8 48 9 . 7 81 44 99 34 25 21 . 10 3 71 64 3 20 49 41 22 2 7 4 4 6 9 5 16 22 88 24 89 141 Critical Kills 24 | . . . . . 2 . 2 . 1 . . . . . . . . 2 5 1 1 . . . . . . . . 2 . 7 1 Critical Parts Destroyed 31 | . 3 . . . 3 . 1 . . . . . . . . . 2 2 10 3 1 1 . . . . . . . 2 1 2 . Critical Strikes 106 | . 3 . . . 12 1 4 4 2 2 . . 2 4 . . 2 5 15 4 2 4 . . . 2 1 1 3 5 3 15 10 Meltdown 13 | . . . . . 2 . 2 . 1 . . . . . . . . . . . . . . . . . . . . 2 . 5 1 Destroy 39 | . 3 . . . . . . . . . . . . . . . 2 4 15 4 2 1 . . . . . . . 2 1 5 . Blast 42 | . . . . . 7 1 . 4 1 2 . . 1 3 . . . . . . . 3 . . . 2 . 1 . 1 2 5 9 Corrupt 4 | . . . . . . . . . . . . . . . . . . 1 . . . . . . . . . . 3 . . . . Smash 5 | . . . . . 3 . 2 . . . . . . . . . . . . . . . . . . . . . . . . . . Sever 1 | . . . . . . . . . . . . . . . . . . . . . . . . . . . 1 . . . . . . Impale 2 | . . . . . . . . . . . . . 1 1 . . . . . . . . . . . . . . . . . . . Melee Attacks 121 | . . . . . 31 . 12 10 . . 1 7 8 10 13 . . 2 2 . . 22 . . . . 3 . . . . . . Impact 42 | . . . . . 20 . 12 10 . . . . . . . . . . . . . . . . . . . . . . . . . Slashing 11 | . . . . . 11 . . . . . . . . . . . . . . . . . . . . . . . . . . . . Piercing 27 | . . . . . . . . . . . 1 7 8 10 . . . 1 . . . . . . . . . . . . . . . Sneak Attacks 53 | . . . . . 8 . 2 1 . . . . 1 . 13 . . 1 2 . . 22 . . . . 3 . . . . . . Combat Hostiles 1 | . . . . . 1 . . . . . . . . . . . . . . . . . . . . . . . . . . . . Follow-up Attacks 1 | . . . . . 1 . . . . . . . . . . . . . . . . . . . . . . . . . . . . Damage Inflicted 79836 | 179 1171 220 . 316 4834 2372 6217 1829 1996 1168 . 389 337 3405 2273 170 1269 3189 2887 1893 193 1153 514 461 445 1612 174 1060 2632 7577 2411 10425 15065 Guns 10771 | 179 1171 125 . 92 9 . . . . . . . . . . 37 1269 849 2176 580 193 143 . . 64 273 . . 301 1128 384 1423 375 Cannons 33580 | . . 95 . 224 2284 939 2463 1165 945 437 . . 232 1860 936 . . 102 499 . . 661 282 342 140 1339 . 480 2238 2375 1218 5241 7083 Explosions 32866 | . . . . . 1378 1433 3278 470 1051 731 . 195 . 1283 1337 133 . 2187 212 1313 . 349 232 119 241 . . 580 93 4074 809 3761 7607 Melee 2377 | . . . . . 1146 . 476 194 . . . 194 105 262 . . . . . . . . . . . . . . . . . . . Ramming 68 | . . . . . 17 . . . . . . . . . . . . 51 . . . . . . . . . . . . . . . Kinetic 23757 | 179 1171 220 . 316 2108 246 72 673 169 328 . . 102 1372 776 . 86 667 1862 580 193 624 282 342 140 1339 . 480 534 2448 886 2581 2981 Thermal 26816 | . . . . . 185 693 2391 492 776 109 . . 130 488 301 37 1183 182 1025 195 . 212 . . 115 273 174 . 1050 1020 744 6438 8603 Explosive 20265 | . . . . . 1378 1433 3278 470 1051 731 . 195 . 1283 1196 133 . 1243 . . . . . . . . . . . 4074 711 1057 2032 Electromagnetic 5160 | . . . . . . . . . . . . . . . . . . 1046 . 1118 . 317 232 119 190 . . 580 1048 35 70 349 56 Impact 1627 | . . . . . 957 . 476 194 . . . . . . . . . . . . . . . . . . . . . . . . . Slashing 189 | . . . . . 189 . . . . . . . . . . . . . . . . . . . . . . . . . . . . Piercing 561 | . . . . . . . . . . . . 194 105 262 . . . . . . . . . . . . . . . . . . . Entropic 1393 | . . . . . . . . . . . . . . . . . . . . . . . . . . . . . . . . . 1393 Highest Corruption 20 | . . . . . . . 3 . . . . . . . 12 12 12 18 1 1 1 1 . . 1 3 3 3 . 2 1 20 5 Average Corruption 5 | . . . . . . . 2 . . . . . . . 9 11 8 3 1 1 1 1 . . 1 2 3 3 . 1 1 13 3 Corruption Purged 14 | . . . . . . . . . . . . . . . 2 . 12 . . . . . . . . . . . . . . . . Corruption Blocked 54 | . . . . . . . . . . . . . . 1 . . . . . . . . . . . . . . 3 3 30 8 9 Effects 264 | . . . . . . . 13 . . . . . . . 19 26 17 5 4 8 5 1 . . 7 15 2 18 . 5 9 102 8 Message Errors 60 | . . . . . . . 3 . . . . . . . 7 8 2 . . . 1 . . . . 6 1 4 . 1 . 25 2 Matter Fused 57 | . . . . . . . 2 . . . . . . . 3 5 3 1 . 2 2 . . . 1 3 . 4 . 1 3 26 1 Heat Flow Errors 40 | . . . . . . . 3 . . . . . . . 1 6 4 1 1 1 1 . . . 2 . . 5 . . 1 14 . Energy Discharges 33 | . . . . . . . 2 . . . . . . . 4 1 6 . 2 2 1 . . . 2 . . 1 . 2 1 8 1 Parts Rejected 4 | . . . . . . . . . . . . . . . . . . 1 . . . . . . . . . . . . . 2 1 Parts Fused 3 | . . . . . . . . . . . . . . . . . . . . . . . . . . . . 1 . . . 2 . Data Loss (minor) 32 | . . . . . . . 1 . . . . . . . 3 5 1 1 . 1 . . . . 1 3 1 3 . 1 3 7 1 Data Loss (major) 5 | . . . . . . . 1 . . . . . . . . . . . . . . . . . . 1 . . . . . 2 1 Misfires 12 | . . . . . . . 1 . . . . . . . 1 1 . . . 2 . . . . 1 2 . . . . . 4 . Alerts 7 | . . . . . . . . . . . . . . . . . . 1 1 . . 1 . . . . . . . . 1 3 . Misdirections 1 | . . . . . . . . . . . . . . . . . . . . . . . . . . . . . . . . 1 . Weapon Failures 10 | . . . . . . . . . . . . . . . . . 1 . . . . . . . . . . . . . . 8 1 Overload Shots 11 | . . . . . . . . . 7 . . . . . 1 . . 1 . . . . . . . . . . . . . 2 . Effects 2 | . . . . . . . . . 2 . . . . . . . . . . . . . . . . . . . . . . . . Energy Bleed 1 | . . . . . . . . . 1 . . . . . . . . . . . . . . . . . . . . . . . . Heat Surge 1 | . . . . . . . . . 1 . . . . . . . . . . . . . . . . . . . . . . . . Overflow Damage 4803 | . . . . 5 500 83 311 10 24 7 . 33 21 12 14 . . 63 13 64 . 54 29 136 56 160 17 5 105 331 154 1417 1179 Projectiles 2213 | . . . . 5 57 21 64 . . 7 . . 21 . . . . . 9 . . 54 29 112 56 160 17 4 105 137 112 871 372 Explosions 1935 | . . . . . 18 62 50 10 24 . . . . 12 14 . . 63 4 64 . . . 24 . . . 1 . 194 42 546 807 Melee 655 | . . . . . 425 . 197 . . . . 33 . . . . . . . . . . . . . . . . . . . . . Knockbacks 123 | . . . . 3 21 1 . 6 . 3 . . . 12 19 . . 2 . . . . 2 2 . 5 . 2 . 12 2 13 18 Impact 4 | . . . . . 3 . . . . . . . . . . . . 1 . . . . . . . . . . . . . . . Kinetic 106 | . . . . 3 16 1 . 6 . 3 . . . 12 17 . . . . . . . 2 2 . 5 . 2 . 10 2 10 15 Secondary 13 | . . . . . 2 . . . . . . . . . 2 . . 1 . . . . . . . . . . . 2 . 3 3 Self-Inflicted Damage 2195 | . . . . . . 29 110 . 49 49 . 44 . 255 52 . . 305 167 6 . 40 . 37 31 . . . . 532 . 210 279 Shots 47 | . . . . . . 1 5 . 1 2 . 1 . 7 1 . . 5 2 1 . 2 . 2 1 . . . . 9 . 4 3 Rammed 4 | . . . . . 3 . . . . . . . . . . . . 1 . . . . . . . . . . . . . . . Targets Rammed 5 | . . . . . 4 . . . . . . . . . . . . 1 . . . . . . . . . . . . . . . Kicked . | . . . . . . . . . . . . . . . . . . . . . . . . . . . . . . . . . . Crushed 1 | . . . . . 1 . . . . . . . . . . . . . . . . . . . . . . . . . . . . Highest Temperature 615 | . 20 46 . 80 27 135 375 251 380 9 . . 64 406 135 113 391 82 615 75 25 . . . 39 189 . 52 138 . 185 117 345 Average Temperature 88 | . 5 11 . 30 15 35 72 65 124 5 . . 28 161 18 56 135 38 236 47 25 . . . 21 81 . 19 73 . 61 41 116 Received Heat Transfer 6013 | . 282 20 . . 567 306 873 306 480 81 . 9 . 699 230 13 18 114 561 63 . 36 12 . . 83 . . 239 276 80 368 297 Effects 13 | . . . . . . . 2 . . . . . . 2 . . . . 8 . . . . . . . . . . . . . 1 Shutdowns 2 | . . . . . . . . . . . . . . 1 . . . . . . . . . . . . . . . . . . 1 Energy Bleed 1 | . . . . . . . . . . . . . . 1 . . . . . . . . . . . . . . . . . . . Interference 4 | . . . . . . . 2 . . . . . . . . . . . 2 . . . . . . . . . . . . . . Matter Decay 2 | . . . . . . . . . . . . . . . . . . . 2 . . . . . . . . . . . . . . Damage (major) 2 | . . . . . . . . . . . . . . . . . . . 2 . . . . . . . . . . . . . . Damage (core) 2 | . . . . . . . . . . . . . . . . . . . 2 . . . . . . . . . . . . . . Siege Activations 18 | . . . . . . . . . . . . . . . . . . . . . . . . . . . . . 2 6 1 3 6 Total Turns 242 | . . . . . . . . . . . . . . . . . . . . . . . . . . . . . 19 83 22 51 67 Longest Duration 22 | . . . . . . . . . . . . . . . . . . . . . . . . . . . . . 13 22 22 22 20 Robots Corrupted 6 | . . . . . . . . . . . . . . . . . . . . 1 . 1 1 . . . . . 3 . . . . Combat Hostiles 5 | . . . . . . . . . . . . . . . . . . . . 1 . 1 1 . . . . . 2 . . . . Parts Fried 38 | . . . . . 2 . 4 . . . . . . . . . . 3 . 7 . 1 4 . 1 . . 3 7 . . 6 . Impact Corruptions 22 | . . . . . 14 . 6 . . . . . . . . . . . . . . . . . . . . . . 1 . 1 . Robots Melted 13 | . . . . . 2 . 2 . 1 . . . . . . . . . . . . . . . . . . . . 2 . 5 1 Combat Hostiles 12 | . . . . . 1 . 2 . 1 . . . . . . . . . . . . . . . . . . . . 2 . 5 1 Parts Melted 40 | . . . . . 3 1 9 1 2 1 . . . 1 . . 3 . 1 . . . . . . . . . 1 1 . 10 6 Heat Transferred 26914 | . . . . . 350 1300 4500 718 959 161 . . 148 592 322 19 1517 222 570 100 . 100 . . 124 296 286 . 910 925 642 4946 7207 Parts Sabotaged . | . . . . . . . . . . . . . . . . . . . . . . . . . . . . . . . . . . Parts Stolen 5 | . . . . . . . . . . 5 . . . . . . . . . . . . . . . . . . . . . . . Parts Stripped . | . . . . . . . . . . . . . . . . . . . . . . . . . . . . . . . . . . Power Chain Reactions 12 | . . . . . . . . . . . . . . . . . . . . 2 . 3 . . 1 . . 1 1 . 1 1 2 Alert | -11 -10 -10 -10 -9 -8 -8 -8 -7 -7 -7 -7 -6 -6 -6 -6 -6 -6 -6 -5 -5 -5 -5 -4 -4 -4 -4 -4 -3 -3 -3 -2 -2 -1 ------- Run | Yrd Mat Min Exi Min Mat Gar Mat Fac Low Low Zio Pro Fac Gar Ext Cet Arc Hub Fac Upp Upp War Pro Fac Upp Upp Zhi Pro Res Qua Res Tes Acc Peak Influence 2408 | 25 313 66 . 2 636 1511 1668 597 . . . . 114 1106 831 763 510 1994 1414 . . . . 178 . . . . 210 852 496 1327 2408 Initial 976 | . 16 . . . . 413 736 560 . . . . . 24 580 464 225 112 976 . . . . 44 . . . . 150 21 410 58 768 Average 503 | 11 120 25 . 1 295 1052 1149 431 . . . . 46 743 628 572 436 1164 822 . . . . 84 . . . . 54 370 244 337 1337 Maximum Alert Level 5 | . 1 . . . 2 4 5 2 . . . . . 4 3 3 2 5 4 . . . . . . . . . 1 3 2 4 5 Low Security (%) 36 | 100 86 100 . 100 35 . . . . . . . 100 13 . . . 7 . . . . . 100 . . . . 99 50 47 37 . Level 1 13 | . 13 . . . 29 . . 31 . . . . . 4 . . 21 18 . . . . . . . . . . . 1 32 39 . Level 2 21 | . . . . . 34 16 . 68 . . . . . 9 80 87 78 1 43 . . . . . . . . . . 7 19 11 . Level 3 15 | . . . . . . 30 36 . . . . . . 59 19 12 . 10 43 . . . . . . . . . . 40 . 6 46 Level 4 9 | . . . . . . 53 59 . . . . . . 12 . . . 21 13 . . . . . . . . . . . . 5 13 Level 5 3 | . . . . . . . 4 . . . . . . . . . . 39 . . . . . . . . . . . . . . 40 High Security . | . . . . . . . . . . . . . . . . . . . . . . . . . . . . . . . . . . Max Security . | . . . . . . . . . . . . . . . . . . . . . . . . . . . . . . . . . . Squads Dispatched 85 | . 2 . . . 8 . 9 3 . . . . 1 . 4 1 . 7 7 . . . . 2 . . . . 7 10 1 12 11 Investigation 17 | . 1 . . . 4 . 2 1 . . . . . . . 1 . . . . . . . 1 . . . . 4 . 1 2 . Extermination 18 | . . . . . . . . 2 . . . . . . . . . . 3 . . . . . . . . . . 4 . 6 3 Reinforcement 27 | . 1 . . . 4 . 1 . . . . . 1 . 1 . . 4 4 . . . . 1 . . . . 3 2 . 4 1 Assault 14 | . . . . . . . 3 . . . . . . . 3 . . 2 . . . . . . . . . . . 1 . . 5 Garrison 9 | . . . . . . . 3 . . . . . . . . . . 1 . . . . . . . . . . . 3 . . 2 Intercept . | . . . . . . . . . . . . . . . . . . . . . . . . . . . . . . . . . . Searches Triggered . | . . . . . . . . . . . . . . . . . . . . . . . . . . . . . . . . . . Construction Impeded 9 | . . . . . 2 . . . . . . . . . 1 . . 1 1 . . . . 1 . . . . . 1 . 2 . Haulers Reinforced 4 | . . . . . . . . . . . . . . . . . . 2 1 . . . . . . . . . . . . . 1 Active Scanning Responses . | . . . . . . . . . . . . . . . . . . . . . . . . . . . . . . . . . . Cargo Convoy Interrupts . | . . . . . . . . . . . . . . . . . . . . . . . . . . . . . . . . . . Stealth | -11 -10 -10 -10 -9 -8 -8 -8 -7 -7 -7 -7 -6 -6 -6 -6 -6 -6 -6 -5 -5 -5 -5 -4 -4 -4 -4 -4 -3 -3 -3 -2 -2 -1 --------- Run | Yrd Mat Min Exi Min Mat Gar Mat Fac Low Low Zio Pro Fac Gar Ext Cet Arc Hub Fac Upp Upp War Pro Fac Upp Upp Zhi Pro Res Qua Res Tes Acc Distress Signals 50 | . . . . . 4 . 3 1 . . . . 1 . 2 2 . 2 1 . . . . 1 . . . . 4 3 18 . 8 Communications Jammed . | . . . . . . . . . . . . . . . . . . . . . . . . . . . . . . . . . . Distress Signals . | . . . . . . . . . . . . . . . . . . . . . . . . . . . . . . . . . . Times Spotted 652 | . 20 8 . . 50 31 64 23 11 17 . 3 9 33 24 13 18 30 22 14 . 14 4 6 4 7 . 12 27 35 14 54 85 Peak Tracking Total 13 | . 5 3 . . 4 6 10 5 3 6 . 3 2 10 6 5 3 7 7 5 . 5 3 4 2 2 . 5 6 7 7 5 13 Tactical Retreats 21 | . . . . . 5 3 1 3 . . . . . 1 1 . . . 3 1 . . . 1 . . . 1 . 1 . . . Traps | -11 -10 -10 -10 -9 -8 -8 -8 -7 -7 -7 -7 -6 -6 -6 -6 -6 -6 -6 -5 -5 -5 -5 -4 -4 -4 -4 -4 -3 -3 -3 -2 -2 -1 ------- Run | Yrd Mat Min Exi Min Mat Gar Mat Fac Low Low Zio Pro Fac Gar Ext Cet Arc Hub Fac Upp Upp War Pro Fac Upp Upp Zhi Pro Res Qua Res Tes Acc Traps Triggered 18 | . . . . . 3 4 2 . . . . . . 2 2 . . 1 . . . . . . . . . . 2 1 . 1 . Indirectly 3 | . . . . . . . . . . . . . . . . . . 1 . . . . . . . . . . 2 . . . . Trap Hack Attempts . | . . . . . . . . . . . . . . . . . . . . . . . . . . . . . . . . . . Triggered . | . . . . . . . . . . . . . . . . . . . . . . . . . . . . . . . . . . Disarmed . | . . . . . . . . . . . . . . . . . . . . . . . . . . . . . . . . . . Reprogrammed . | . . . . . . . . . . . . . . . . . . . . . . . . . . . . . . . . . . Reused 1 | . . . . . . 1 . . . . . . . . . . . . . . . . . . . . . . . . . . . Traps Extracted . | . . . . . . . . . . . . . . . . . . . . . . . . . . . . . . . . . . Installed 4 | . . . . . . 2 . . . . . 2 . . . . . . . . . . . . . . . . . . . . . Triggered 12 | . . . . . . 1 . . . . . 1 . . . . . . . . . 10 . . . . . . . . . . . Most Traps Carried 6 | . . 5 5 5 5 6 5 5 5 5 5 5 5 5 5 5 5 5 . . . . . . . . . . . . . . . Machines | -11 -10 -10 -10 -9 -8 -8 -8 -7 -7 -7 -7 -6 -6 -6 -6 -6 -6 -6 -5 -5 -5 -5 -4 -4 -4 -4 -4 -3 -3 -3 -2 -2 -1 ---------- Run | Yrd Mat Min Exi Min Mat Gar Mat Fac Low Low Zio Pro Fac Gar Ext Cet Arc Hub Fac Upp Upp War Pro Fac Upp Upp Zhi Pro Res Qua Res Tes Acc Machines Disabled 96 | . . . . . 1 8 3 7 . . . . . 6 2 2 2 19 16 1 . . . . . . . . 2 7 1 16 3 Max in Single Turn 8 | . . . . . . 2 1 2 . . . . . 1 1 . . 8 4 1 . . . . . . . . 1 1 1 2 2 Garrison Access 6 | . . . . . . . . 1 . . . . . . . . . 1 . . . . . . . . . . 1 . 1 1 1 Garrison Relay 2 | . . . . . . . . . . . . . . 2 . . . . . . . . . . . . . . . . . . . Phase Generator 1 | . . . . . . 1 . . . . . . . . . . . . . . . . . . . . . . . . . . . Network Hub 2 | . . . . . . . . . . . . . . . . . . 2 . . . . . . . . . . . . . . . Energy Cycler 1 | . . . . . . . . . . . . . . . 1 . . . . . . . . . . . . . . . . . . Machines Repaired . | . . . . . . . . . . . . . . . . . . . . . . . . . . . . . . . . . . Machines Dismantled 4 | . . . . . . . . . . . . . . . . . . . . . . 1 . . . . . . 2 . . . 1 Machines Sabotaged . | . . . . . . . . . . . . . . . . . . . . . . . . . . . . . . . . . . Overloaded Fab Kills . | . . . . . . . . . . . . . . . . . . . . . . . . . . . . . . . . . . Hacking | -11 -10 -10 -10 -9 -8 -8 -8 -7 -7 -7 -7 -6 -6 -6 -6 -6 -6 -6 -5 -5 -5 -5 -4 -4 -4 -4 -4 -3 -3 -3 -2 -2 -1 --------- Run | Yrd Mat Min Exi Min Mat Gar Mat Fac Low Low Zio Pro Fac Gar Ext Cet Arc Hub Fac Upp Upp War Pro Fac Upp Upp Zhi Pro Res Qua Res Tes Acc Machines Accessed 85 | . 8 2 1 . 8 2 10 7 . 1 . 1 2 1 . 1 . 4 5 1 . 2 . 2 . . 5 . 4 6 1 10 1 Terminals 44 | . 6 . . . 6 2 7 4 . . . 1 . 1 . 1 . 4 . . . . . 1 . . . . . 4 1 6 . Fabricators 5 | . . . . . . . . . . . . . . . . . . . 3 . . . . . . . . . 1 . . 1 . Repair Stations 4 | . . . . . . . . . . . . . . . . . . . 1 . . . . . . . . . 1 1 . 1 . Recycling Units 6 | . 2 . . . 1 . . 2 . . . . 1 . . . . . . . . . . . . . . . . . . . . Scanalyzers 5 | . . . . . . . 2 . . . . . . . . . . . 1 . . . . . . . . . 1 . . 1 . Garrison Access 9 | . . . . . 1 . 1 1 . . . . 1 . . . . . . . . . . 1 . . . . 1 1 . 1 1 Total Hacks 317 | . 23 2 1 . 27 2 31 14 . 1 . 1 4 3 . 2 . 9 19 5 . 3 . 17 . . 15 . 32 20 5 79 2 Successful 141 | . 11 2 1 . 16 2 16 6 . 1 . 1 1 1 . . . 1 7 5 . 3 . 4 . . 15 . 7 7 2 31 1 Failed 176 | . 12 . . . 11 . 15 8 . . . . 3 2 . 2 . 8 12 . . . . 13 . . . . 25 13 3 48 1 Catastrophic 54 | . 1 . . . . . 3 1 . . . . . 1 . 2 . 5 3 . . . . 5 . . . . 8 7 1 17 . Database Lockouts . | . . . . . . . . . . . . . . . . . . . . . . . . . . . . . . . . . . Manual 97 | . 11 . 1 . 19 . 4 5 . . . . 2 . . 1 . 2 7 . . . . 2 . . . . 3 1 4 35 . Terminals 190 | . 18 . . . 22 2 24 8 . . . 1 . 3 . 2 . 9 . . . . . 13 . . . . 9 13 5 61 . Fabricators 23 | . . . . . . . . . . . . . . . . . . . 12 . . . . . . . . . 6 . . 5 . Repair Stations 20 | . . . . . . . . . . . . . . . . . . . 4 . . . . . . . . . 3 6 . 7 . Recycling Units 15 | . 5 . . . 4 . . 4 . . . . 2 . . . . . . . . . . . . . . . . . . . . Scanalyzers 22 | . . . . . . . 4 . . . . . . . . . . . 3 . . . . . . . . . 10 . . 5 . Garrison Access 20 | . . . . . 1 . 3 2 . . . . 2 . . . . . . . . . . 4 . . . . 4 1 . 1 2 Terminal Hacks 93 | . 6 2 1 . 11 2 10 2 . 1 . 1 . 1 . . . 1 . 5 . 3 . 3 . . 15 . . 5 2 22 . Record 16 | . . . . . . . . . . . . 1 . . . . . . . 5 . 2 . . . . 3 . . 2 . 3 . Part Schematic 8 | . . . . . . . . . . . . . . . . . . . . . . . . 2 . . 4 . . . . 2 . Robot Analysis 11 | . 3 . . . 3 . . . . . . . . . . . . . . . . . . . . . 4 . . 1 . . . Prototype ID Bank 10 | . 2 . . . 1 . 1 . . . . . . . . . . 1 . . . . . . . . 4 . . . . 1 . Open Door 7 | . . 2 . . . 1 . . . 1 . . . 1 . . . . . . . 1 . . . . . . . 1 . . . Level Access Points 1 | . . . . . . . 1 . . . . . . . . . . . . . . . . . . . . . . . . . . Branch Access Points 3 | . . . . . 1 . . 1 . . . . . . . . . . . . . . . . . . . . . . 1 . . Emergency Access Points 1 | . . . . . . 1 . . . . . . . . . . . . . . . . . . . . . . . . . . . Terminal Index 2 | . . . . . 1 . . . . . . . . . . . . . . . . . . . . . . . . . . 1 . Alert Level 5 | . . . . . 1 . 2 . . . . . . . . . . . . . . . . . . . . . . . . 2 . Unreport Threat 10 | . . . . . 3 . 3 1 . . . . . . . . . . . . . . . . . . . . . . . 3 . Locate Traps 3 | . . . . . . . 1 . . . . . . . . . . . . . . . . . . . . . . 1 . 1 . Dispatch Records 1 | . . . . . . . . . . . . . . . . . . . . . . . . . . . . . . . . 1 . Maintenance Status 2 | . . . . . 1 . . . . . . . . . . . . . . . . . . . . . . . . . . 1 . Security Status 1 | . . . . . . . . . . . . . . . . . . . . . . . . . . . . . . . . 1 . Transport Status 1 | . . . . . . . . . . . . . . . . . . . . . . . . . . . . . . . . 1 . Recall Reinforcements 1 | . 1 . . . . . . . . . . . . . . . . . . . . . . . . . . . . . . . . Hauler Manifests 3 | . . . . . . . . . . . . . . . . . . . . . . . . 1 . . . . . . 1 1 . Registered Prototypes 1 | . . . . . . . . . . . . . . . . . . . . . . . . . . . . . . . . 1 . Zone Layout 5 | . . . . . . . 2 . . . . . . . . . . . . . . . . . . . . . . . . 3 . Derelict Proto ID Bank 1 | . . . 1 . . . . . . . . . . . . . . . . . . . . . . . . . . . . . . Fabricator Hacks 7 | . . . . . . . . . . . . . . . . . . . 2 . . . . . . . . . 2 . . 3 . Network Status 2 | . . . . . . . . . . . . . . . . . . . 1 . . . . . . . . . . . . 1 . Load Schematic 2 | . . . . . . . . . . . . . . . . . . . . . . . . . . . . . 1 . . 1 . Build 3 | . . . . . . . . . . . . . . . . . . . 1 . . . . . . . . . 1 . . 1 . Repair Station Hacks 6 | . . . . . . . . . . . . . . . . . . . 3 . . . . . . . . . . 2 . 1 . Scan Component 4 | . . . . . . . . . . . . . . . . . . . 2 . . . . . . . . . . 1 . 1 . Repair 2 | . . . . . . . . . . . . . . . . . . . 1 . . . . . . . . . . 1 . . . Recycling Unit Hacks 4 | . 2 . . . 1 . . 1 . . . . . . . . . . . . . . . . . . . . . . . . . Retrieve Components 4 | . 2 . . . 1 . . 1 . . . . . . . . . . . . . . . . . . . . . . . . . Scanalyzer 8 | . . . . . . . 4 . . . . . . . . . . . 1 . . . . . . . . . 3 . . . . Insert Component 5 | . . . . . . . 2 . . . . . . . . . . . 1 . . . . . . . . . 2 . . . . Analyze 3 | . . . . . . . 2 . . . . . . . . . . . . . . . . . . . . . 1 . . . . Garrison Access Hacks 6 | . . . . . 1 . . 1 . . . . 1 . . . . . . . . . . . . . . . 1 . . 1 1 Unlock Access 2 | . . . . . 1 . . . . . . . 1 . . . . . . . . . . . . . . . . . . . . Seal Access 4 | . . . . . . . . 1 . . . . . . . . . . . . . . . . . . . . 1 . . 1 1 Unauthorized Hacks 17 | . 3 . . . 3 . 2 2 . . . . . . . . . . 1 . . . . 1 . . . . 1 . . 4 . Terminals 11 | . 2 . . . 2 . 2 1 . . . . . . . . . . . . . . . 1 . . . . 1 . . 2 . Botnet 11 | . 2 . . . 2 . 2 1 . . . . . . . . . . . . . . . 1 . . . . 1 . . 2 . Fabricators 2 | . . . . . . . . . . . . . . . . . . . 1 . . . . . . . . . . . . 1 . Fabnet 2 | . . . . . . . . . . . . . . . . . . . 1 . . . . . . . . . . . . 1 . Repair Stations . | . . . . . . . . . . . . . . . . . . . . . . . . . . . . . . . . . . Recycling Units 3 | . 1 . . . 1 . . 1 . . . . . . . . . . . . . . . . . . . . . . . . . Mask 1 | . . . . . . . . 1 . . . . . . . . . . . . . . . . . . . . . . . . . Tunnel 2 | . 1 . . . 1 . . . . . . . . . . . . . . . . . . . . . . . . . . . . Scanalyzers 1 | . . . . . . . . . . . . . . . . . . . . . . . . . . . . . . . . 1 . Researchers 1 | . . . . . . . . . . . . . . . . . . . . . . . . . . . . . . . . 1 . Garrison Access . | . . . . . . . . . . . . . . . . . . . . . . . . . . . . . . . . . . Data Cores Recovered 2 | . . . . . . . . . . . . . . . . . . . . . . . . . . . . . . . . 2 . Used . | . . . . . . . . . . . . . . . . . . . . . . . . . . . . . . . . . . Hacking Detections 62 | . 7 . . . 6 . 9 5 . . . 1 2 1 . 1 . 4 5 . . . . 2 . . . . 4 5 1 9 . Full Trace Events 11 | . 1 . . . . . 2 1 . . . . . 1 . 1 . . . . . . . 1 . . . . 2 . 1 1 . Feedback Events . | . . . . . . . . . . . . . . . . . . . . . . . . . . . . . . . . . . Feedback Blocked . | . . . . . . . . . . . . . . . . . . . . . . . . . . . . . . . . . . Robot Schematics Acquired 6 | . . . . . . . . . . . 3 . . . . . . . . . . . . . . . . . . 2 . 1 . Robots Built 3 | . . . . . . . . . . . . . . . . . . . 3 . . . . . . . . . . . . . . Authchips . | . . . . . . . . . . . . . . . . . . . . . . . . . . . . . . . . . . Time 169 | . . . . . . . . . . . . . . . . . . . 169 . . . . . . . . . . . . . . Total Robot Build Rating 18 | . . . . . . . . . . . . . . . . . . . 18 . . . . . . . . . . . . . . Part Schematics Acquired 33 | . . . . . . . 2 . . . 16 . . . . . . . . . . . . 2 . . 4 . 1 3 . 5 . Parts Built 2 | . . . . . . . . . . . . . . . . . . . . . . . . . . . . . 1 . . 1 . Authchips . | . . . . . . . . . . . . . . . . . . . . . . . . . . . . . . . . . . Time 181 | . . . . . . . . . . . . . . . . . . . . . . . . . . . . . 42 . . 139 . Total Part Build Rating 17 | . . . . . . . . . . . . . . . . . . . . . . . . . . . . . 8 . . 9 . Parts Repaired 1 | . . . . . . . . . . . . . . . . . . . 1 . . . . . . . . . . . . . . Time 152 | . . . . . . . . . . . . . . . . . . . 44 . . . . . . . . . . 108 . . . Parts Recycled . | . . . . . . . . . . . . . . . . . . . . . . . . . . . . . . . . . . Recycled Matter . | . . . . . . . . . . . . . . . . . . . . . . . . . . . . . . . . . . Retrieved Matter . | . . . . . . . . . . . . . . . . . . . . . . . . . . . . . . . . . . Retrieved Components 20 | . 10 . . . 10 . . . . . . . . . . . . . . . . . . . . . . . . . . . . Parts Scanalyzed 5 | . . . . . . . 2 . . . . . . . . . . . 1 . . . . . . . . . 2 . . . . Part Schematics Acquired 3 | . . . . . . . 2 . . . . . . . . . . . . . . . . . . . . . 1 . . . . Parts Damaged . | . . . . . . . . . . . . . . . . . . . . . . . . . . . . . . . . . . Bothacking | -11 -10 -10 -10 -9 -8 -8 -8 -7 -7 -7 -7 -6 -6 -6 -6 -6 -6 -6 -5 -5 -5 -5 -4 -4 -4 -4 -4 -3 -3 -3 -2 -2 -1 ------------ Run | Yrd Mat Min Exi Min Mat Gar Mat Fac Low Low Zio Pro Fac Gar Ext Cet Arc Hub Fac Upp Upp War Pro Fac Upp Upp Zhi Pro Res Qua Res Tes Acc Used RIF Installer . | . . . . . . . . . . . . . . . . . . . . . . . . . . . . . . . . . . Robots Hacked 12 | . . . . . . . . . . . . . . . . . . 1 2 . . 1 . . . . 3 . . . 1 . 4 Non-combat 1 | . . . . . . . . . . . . . . . . . . . 1 . . . . . . . . . . . . . . Combat 11 | . . . . . . . . . . . . . . . . . . 1 1 . . 1 . . . . 3 . . . 1 . 4 Robot Hacks Applied 8 | . . . . . . . . . . . . . . . . . . 1 2 . . 1 . . . . 3 . . . 1 . . parse_system 8 | . . . . . . . . . . . . . . . . . . 1 2 . . 1 . . . . 3 . . . 1 . . Relay Couplers Released 17 | . . . . . . . . 4 . . . . . 8 . . . 1 . . . . . . . . . . . 3 1 . . Machine Destruction 14 | . . . . . . . . 4 . . . . . 8 . . . 1 . . . . . . . . . . . . 1 . . Programmers 3 | . . . . . . . . . . . . . . . . . . . . . . . . . . . . . . 3 . . . Fabnet Peak Effective % 3 | . . . . . . . . . . . . . . . . . . . . . . . . . . . . . . . . . 3 Autooverrided 4 | . . . . . . . . . . . . . . . . . . . . . . . . . . . . . . . . . 4 Robots Rewired 17 | . . . . . . . . . . 2 . . . 2 7 . . . . 1 . 5 . . . . . . . . . . . Allies Hacked 1 | . . . . . . . . . . . . . . . . . . . 1 . . . . . . . . . . . . . . Hacks Repelled . | . . . . . . . . . . . . . . . . . . . . . . . . . . . . . . . . . . Allies | -11 -10 -10 -10 -9 -8 -8 -8 -7 -7 -7 -7 -6 -6 -6 -6 -6 -6 -6 -5 -5 -5 -5 -4 -4 -4 -4 -4 -3 -3 -3 -2 -2 -1 -------- Run | Yrd Mat Min Exi Min Mat Gar Mat Fac Low Low Zio Pro Fac Gar Ext Cet Arc Hub Fac Upp Upp War Pro Fac Upp Upp Zhi Pro Res Qua Res Tes Acc Total Allies 47 | . . 3 . . . 2 . . . 2 . . . 2 12 9 . 1 3 1 . 5 . . . . . . . . . . 7 Largest Group 15 | . . 3 1 1 1 2 . . . 2 2 2 . 2 8 15 15 12 4 1 1 6 . . . . . . . . . . 3 Highest-Rated Group 991 | . . 40 16 16 16 59 . . . 62 62 62 . 75 354 991 991 777 199 30 30 291 . . . . . . . . . . 379 Highest-Rated Ally 159 | . . 16 16 16 16 39 . . . 31 31 31 . 46 159 159 152 109 109 30 30 68 . . . . . . . . . . 135 Total Orders 175 | . . 23 . . 5 3 . . 5 3 5 14 . 3 10 22 2 8 29 5 4 4 2 1 2 3 . 7 9 3 . . 3 STAY 36 | . . 3 . . 3 . . . . 1 2 5 . . 1 6 1 3 8 1 2 . . . . . . . . . . . . ROAM 2 | . . 1 . . . . . . . . . . . . . . . 1 . . . . . . . . . . . . . . . FOLLOW 42 | . . 4 . . 2 . . . . 1 . 3 . 1 2 11 1 3 9 1 2 1 . . . . . . 1 . . . . EXPLORE 19 | . . 6 . . . 1 . . 3 . 2 1 . . 1 . . . . 1 . 1 1 . . . . 1 1 . . . . RETURN 76 | . . 9 . . . 2 . . 2 1 1 5 . 2 6 5 . 1 12 2 . 2 1 1 2 3 . 6 7 3 . . 3 Ally Attacks 423 | . . 23 . . 28 7 . . . 32 . 6 . 3 31 34 32 132 27 . . 44 . . . . . . . . . . 24 Total Damage 11548 | . . 244 . . 277 69 . . . 443 . 102 . 74 857 1178 1055 4438 757 . . 1526 . . . . . . . . . . 528 Kills 81 | . . 3 . . 4 1 . . . 6 . . . . 8 7 5 32 6 . . 9 . . . . . . . . . . . Allies Corrupted 4 | . . . . . . . . . . . . . . . . . . 3 . . . . . . . 1 . . . . . . . Allies Melted 2 | . . . . . . 1 . . . . . . . . . 1 . . . . . . . . . . . . . . . . . Field Lobotomies 5 | . . . . . . . . . . . . . . . . 4 . 1 . . . . . . . . . . . . . . . Intel | -11 -10 -10 -10 -9 -8 -8 -8 -7 -7 -7 -7 -6 -6 -6 -6 -6 -6 -6 -5 -5 -5 -5 -4 -4 -4 -4 -4 -3 -3 -3 -2 -2 -1 ------- Run | Yrd Mat Min Exi Min Mat Gar Mat Fac Low Low Zio Pro Fac Gar Ext Cet Arc Hub Fac Upp Upp War Pro Fac Upp Upp Zhi Pro Res Qua Res Tes Acc Robot Analysis Total 10 | . 2 . . . 3 . . . . . . . . . . . . . . . . . . . . . 4 . . 1 . . . Derelict Logs Recovered 16 | . . 2 . 1 . . . . 1 2 1 3 . . . . . . . . 1 . 1 . 1 3 . . . . . . . Drone Launches 118 | . . 13 . . . 2 . . 4 3 3 6 . 3 12 6 . 4 14 3 . 5 1 . 3 4 . 19 7 3 . . 3 Drone Recoveries 112 | . . 13 . . . 2 . . 4 3 3 4 . 3 10 8 . 2 15 2 . 5 1 1 2 3 . 18 7 3 . . 3 Exploration | -11 -10 -10 -10 -9 -8 -8 -8 -7 -7 -7 -7 -6 -6 -6 -6 -6 -6 -6 -5 -5 -5 -5 -4 -4 -4 -4 -4 -3 -3 -3 -2 -2 -1 ------------- Run | Yrd Mat Min Exi Min Mat Gar Mat Fac Low Low Zio Pro Fac Gar Ext Cet Arc Hub Fac Upp Upp War Pro Fac Upp Upp Zhi Pro Res Qua Res Tes Acc Turns Passed 42766 | 200 1217 1301 452 491 3409 1430 1500 1416 1027 2355 1889 1467 621 1377 1008 666 476 680 1723 1474 600 1019 1399 146 805 1302 367 1395 2092 1277 2034 2464 1687 Spaces Moved 19748 | 85 544 508 234 108 1057 862 679 858 606 534 996 620 304 427 465 361 231 396 896 819 423 651 798 84 458 549 181 619 959 521 1064 1221 630 Core 4 | 2 . . . . . . . . . . . . . 2 . . . . . . . . . . . . . . . . . . . Treads 5217 | 83 231 72 . 59 789 . . . . 288 . . . . 7 . . . . . . . . . . . . . 540 521 1064 1221 342 Legs 356 | . . . . . . . . . . . . . . 270 86 . . . . . . . . . . . . . . . . . . Wheels 14171 | . 313 436 234 49 268 862 679 858 606 246 996 620 304 155 372 361 231 396 896 819 423 651 798 84 458 549 181 619 419 . . . 288 Hover . | . . . . . . . . . . . . . . . . . . . . . . . . . . . . . . . . . . Flight . | . . . . . . . . . . . . . . . . . . . . . . . . . . . . . . . . . . Fastest Speed 50 | 50 95 175 190 190 130 130 115 115 115 160 145 145 145 145 115 115 115 115 115 130 130 130 130 130 130 175 160 175 170 170 165 141 141 Average Speed 165 | 157 160 208 190 392 212 130 129 120 137 418 159 157 150 247 154 139 115 115 117 130 130 130 130 140 164 175 160 175 178 170 175 162 192 Slowest Speed 1950 | 160 200 320 190 560 560 130 160 130 160 640 160 160 160 1950 570 160 115 115 130 130 130 130 130 145 190 175 175 175 190 176 176 247 330 Overloaded Moves . | . . . . . . . . . . . . . . . . . . . . . . . . . . . . . . . . . . Propulsion Burnouts . | . . . . . . . . . . . . . . . . . . . . . . . . . . . . . . . . . . Robots Hopped . | . . . . . . . . . . . . . . . . . . . . . . . . . . . . . . . . . . Cave-ins Triggered 1 | . . . . . . . . . . . . . . . 1 . . . . . . . . . . . . . . . . . . Exploration Rate (%) 59 | 6 89 71 62 25 71 95 75 20 80 62 88 94 11 59 59 79 95 31 24 77 68 93 83 4 65 73 62 77 26 54 30 95 23 Regions Visited 33 Branch Regions 21 Pre-discovered Areas 10 | . 1 1 . . 1 . . . 2 . 2 1 . . . . . . . . . . . . 1 1 . . . . . . . Known Exits Taken 17 | . . . . . 1 . 1 1 . 1 . 1 1 . . . . 1 1 1 1 . 1 1 1 . . 1 1 1 1 . . Unknown Exits Taken 14 | 1 1 1 1 1 . . . . 1 . 1 . . . 1 1 1 . . . . 1 . . . 1 1 . . . . 1 . Scrap Searched 28 | . . 1 . . . . . . 4 2 5 2 . . . . . . . 3 4 . 1 . 1 1 . 4 . . . . . Spaces Dug 185 | . . . . . 13 12 5 8 . . . 2 9 25 3 . . 9 15 2 . 5 13 . . 3 . 5 11 13 2 7 23 Terrain Destroyed 2264 | . . . . 2 115 126 181 60 96 59 . 15 21 71 104 10 2 363 155 38 6 31 44 3 16 17 . 12 31 123 41 231 291 Melee 19 | . . . . . 6 . . 4 . . . 2 6 . . . . 1 . . . . . . . . . . . . . . . Projectile 450 | . . . . 2 25 1 38 20 4 10 . . 15 1 13 . 2 11 38 22 6 7 44 3 2 17 . 10 28 21 20 48 42 AOE 1795 | . . . . . 84 125 143 36 92 49 . 13 . 70 91 10 . 351 117 16 . 24 . . 14 . . 2 3 102 21 183 249 Terrain Rammed . | . . . . . . . . . . . . . . . . . . . . . . . . . . . . . . . . . . Walls Destroyed . | . . . . . . . . . . . . . . . . . . . . . . . . . . . . . . . . . . Machines Disabled . | . . . . . . . . . . . . . . . . . . . . . . . . . . . . . . . . . . Actions | -11 -10 -10 -10 -9 -8 -8 -8 -7 -7 -7 -7 -6 -6 -6 -6 -6 -6 -6 -5 -5 -5 -5 -4 -4 -4 -4 -4 -3 -3 -3 -2 -2 -1 --------- Run | Yrd Mat Min Exi Min Mat Gar Mat Fac Low Low Zio Pro Fac Gar Ext Cet Arc Hub Fac Upp Upp War Pro Fac Upp Upp Zhi Pro Res Qua Res Tes Acc Total 27413 | 115 709 729 242 151 1978 1074 1106 1124 751 614 1291 1102 439 639 691 511 378 551 1451 1182 466 788 1092 101 496 848 230 902 1238 812 1185 1526 901 Wait 4810 | . 26 176 . 25 661 82 248 144 93 34 271 461 87 70 92 99 105 72 454 289 36 25 227 6 28 260 15 248 106 188 55 70 57 Move 19713 | 84 543 507 233 107 1057 859 678 857 605 533 995 619 304 426 463 360 230 395 895 818 422 650 797 83 457 548 180 618 958 520 1063 1220 629 Hop . | . . . . . . . . . . . . . . . . . . . . . . . . . . . . . . . . . . Pick Up 253 | 5 16 14 6 1 25 7 10 10 4 6 3 1 7 10 9 10 . 7 9 3 . 8 1 1 1 3 3 4 18 5 10 17 19 Fast Attach 180 | 6 2 . . . 6 . 4 6 2 5 8 1 . 7 11 3 2 5 2 . 2 14 . . . . 4 . 23 7 5 33 22 Attach 128 | 1 2 3 . . 10 3 11 6 3 . . 1 1 7 6 3 . 5 3 3 . 4 . 2 1 . 3 . 6 5 3 14 22 Detach 31 | . . . . . 1 . . 1 . . . 1 . 1 . 2 1 2 . . . 3 . . . . 1 . 3 1 . 4 10 Swap 307 | 1 6 12 1 . 28 9 16 14 14 5 3 5 5 17 19 16 4 13 18 15 1 7 3 2 3 7 . 6 13 14 9 11 10 Drop 316 | . 7 5 2 1 34 5 8 9 2 5 10 2 8 5 15 13 1 8 8 4 2 26 1 . . 1 6 4 39 8 12 53 12 Fire 1411 | 18 107 12 . 17 122 75 119 67 28 23 . 2 19 69 51 5 35 41 60 22 3 21 63 7 6 29 14 22 54 64 28 104 104 Melee 120 | . . . . . 30 . 12 10 . . 1 7 8 10 13 . . 2 2 . . 22 . . . . 3 . . . . . . Ram 1 | . . . . . . . . . . . . . . . . . . 1 . . . . . . . . . . . . . . . Kick . | . . . . . . . . . . . . . . . . . . . . . . . . . . . . . . . . . . Crush 4 | . . . . . 4 . . . . . . . . . . . . . . . . . . . . . . . . . . . . Escape Stasis 45 | . . . . . . 32 . . . . . . . 8 5 . . . . . . . . . . . . . . . . . . Rewire 47 | . . . . . . . . . . 3 . . . 9 7 . . . . 28 . . . . . . . . . . . . . Trap 4 | . . . . . . 2 . . . . . 2 . . . . . . . . . . . . . . . . . . . . . Miscellaneous 43 | . . . . . . . . . . . . . . . . . . . . . . 8 . . . . 1 . 18 . . . 16 Route ------- -11/Scrapyard -10/Materials (discovered 2 exits: *Mat / *Min) -10/Mines (discovered 4 exits: *Mat x2 / *Exi / [*Sub]) -10/Exiles -9/Mines -8/Materials (discovered 2 exits: *Fac / Gar) -8/Garrison (discovered 3 exits: *Mat x3) -8/Materials (discovered 3 exits: *Fac x3) -7/Factory (discovered 4 exits: Sto x2 / *Low x2) -7/Lower Caves -7/Lower Caves (discovered 2 exits: *Fac / *Zio) -7/Zion (discovered 2 exits: Dee / *Pro) -6/Proximity Caves -6/Factory (discovered 2 exits: Fac / Gar) -6/Garrison -6/Extension (discovered 3 exits: *Fac x2 / *Cet) -6/Cetus (discovered 2 exits: *Fac / [*Arc]) -6/Archives (discovered 3 exits: *Fac / *Hub x2) -6/Hub_04(d) -5/Factory (discovered 6 exits: Fac x4 / *Upp x2) -5/Upper Caves -5/Upper Caves (discovered 2 exits: *Fac / *War) -5/Warlord -4/Proximity Caves -4/Factory (discovered 2 exits: *Upp x2) -4/Upper Caves -4/Upper Caves (discovered 2 exits: *Res / *Zhi) -4/Zhirov -3/Proximity Caves -3/Research (discovered 6 exits: *Res x3 / Arm / *Qua x2) -3/Quarantine -2/Research (discovered 2 exits: *Tes x2) -2/Testing -1/Access (discovered 2 exits: *Sur / Com) To Epsilon Eridani History --------- Turn | Location | Event 6 | -11/Scrapyard | Discovered new exit (range 15) 201 | -11/Scrapyard | Entered Materials 277 | -10/Materials | Discovered new exit (range 9) 312 | -10/Materials | Build established: Mutant 497 | -10/Materials | Lost 3 parts (1n1u1w) 759 | -10/Materials | Discovered new exit (range 5) 1418 | -10/Materials | Entered Mines 1427 | -10/Mines | Discovered new exit (range 15) 1432 | -10/Mines | Met a Derelict bent on vengeance 1462 | -10/Mines | Met a Derelict who couldn't figure out how to use a Trap Extractor 1624 | -10/Mines | Identified exit to Materials 1756 | -10/Mines | Found the Drone Emporium 1765 | -10/Mines | Found Prototype Device 1766 | -10/Mines | Identified Sensor Drone Bay 2052 | -10/Mines | Found a hidden stash of uninstalled traps 2109 | -10/Mines | Learned location of Zion (-7) 2109 | -10/Mines | Assisted by bots powering up and referring to "LRC-V3" 2394 | -10/Mines | Assembled infested the area 2593 | -10/Mines | Discovered new exit (range 21) 2680 | -10/Mines | Deemed a non-threat by the Exiles lab entrance 2683 | -10/Mines | Discovered new exit (range 6) 2719 | -10/Mines | Entered Exiles 2719 | -10/Exiles | Accompanied by 1 ally 2765 | -10/Exiles | Met 8R-AWN 2797 | -10/Exiles | Met EX-HEX 2854 | -10/Exiles | Met EX-BIN 2881 | -10/Exiles | Aligned with FarCom system 2883 | -10/Exiles | Given EX-Vault access code 2928 | -10/Exiles | Opened EX-Vault 2942 | -10/Exiles | Found Deploy-a-Sentry 2945 | -10/Exiles | Found Deploy-a-Sentry 2948 | -10/Exiles | Found Deploy-a-Sentry 2952 | -10/Exiles | Found Field Lobotomy Kit 2959 | -10/Exiles | Found 0b10 Alert Chip 3002 | -10/Exiles | Warned to stay clear of 0b10 Research branches 3051 | -10/Exiles | Met EX-DEC 3154 | -10/Exiles | Discovered new exit (range 10) 3171 | -10/Exiles | Stole three prototypes: 0b10 Alert Chip, Field Lobotomy Kit, Deploy-a-Sentry 3171 | -10/Exiles | Entered Mines 3171 | -9/Mines | Accompanied by 1 ally 3172 | -9/Mines | YI-UF0 nonchalantly dropped a Grenade Launcher on the ground 3540 | -9/Mines | Learned Materials terminal intel 3628 | -9/Mines | Murdered YI-UF0 3628 | -9/Mines | Destroyed YI-UF0 3637 | -9/Mines | Discovered new exit (range 11) 3662 | -9/Mines | Entered Materials 3662 | -8/Materials | Accompanied by 1 ally 3662 | -8/Materials | Evolved 4 slots: Propulsion x2, Utility x2 3663 | -8/Materials | Loaded intel: 12 terminal locations 5573 | -8/Materials | Discovered new exit (range 14) 7071 | -8/Materials | Identified exit to Garrison 7071 | -8/Materials | Entered Garrison 7090 | -8/Garrison | Triggered checkpoint 7270 | -8/Garrison | Triggered checkpoint 7277 | -8/Garrison | Triggered checkpoint 7335 | -8/Garrison | Triggered checkpoint 7350 | -8/Garrison | Destroyed 11 combat bots 7380 | -8/Garrison | Discovered new exit (range 15) 7479 | -8/Garrison | Triggered checkpoint 7646 | -8/Garrison | Phase Generator disabled 7653 | -8/Garrison | Triggered checkpoint 7670 | -8/Garrison | Discovered new exit (range 11) 7966 | -8/Garrison | Discovered new exit (range 15) 8124 | -8/Garrison | Rescued a captive Derelict 8124 | -8/Garrison | Rescued a captive Derelict 8161 | -8/Garrison | Triggered checkpoint 8284 | -8/Garrison | Attempted to access garrison exit controls, blocked by remote lockdown 8387 | -8/Garrison | Attempted to access garrison exit controls, blocked by remote lockdown 8501 | -8/Garrison | Entered Materials 8901 | -8/Materials | First assault squad dispatched 9111 | -8/Materials | Destroyed 12 combat bots 9153 | -8/Materials | Identified exit to Factory 9351 | -8/Materials | Destroyed 8 combat bots 9660 | -8/Materials | Garrison activated, responded to threat 9823 | -8/Materials | Garrison activated, responded to threat 10001 | -8/Materials | Entered Factory 10001 | -7/Factory | Evolved 2 slots: Utility x2 10003 | -7/Factory | FarCom data flow suspended 10972 | -7/Factory | Discovered new exit (range 5) 11349 | -7/Factory | Identified exit to Storage 11349 | -7/Factory | Identified exit to Lower Caves 11417 | -7/Factory | Entered Lower Caves 11428 | -7/Lower Caves | Met a Warlord Commander 11429 | -7/Lower Caves | Learned location of Warlord (-5) 11430 | -7/Lower Caves | Warlord Commander delivered Encrypted Comm Array 11431 | -7/Lower Caves | Found Encrypted Comm Array 11688 | -7/Lower Caves | Spotted B-75 Beast 11948 | -7/Lower Caves | Destroyed B-75 Beast 11977 | -7/Lower Caves | Lost 4 parts (1p3u) 12347 | -7/Lower Caves | Discovered new exit (range 15) 12444 | -7/Lower Caves | Entered another Lower Caves area 12466 | -7/Lower Caves | Attacked by a faux Warlord 12502 | -7/Lower Caves | Destroyed 7 combat bots 12747 | -7/Lower Caves | Discovered new exit (range 12) 13201 | -7/Lower Caves | Identified exit to Factory 14736 | -7/Lower Caves | Spotted WT-C07(f) 14737 | -7/Lower Caves | Encountered a Master Thief 14737 | -7/Lower Caves | Spotted 70-0IH(f) 14737 | -7/Lower Caves | Spotted 2K-JR7(f) 14738 | -7/Lower Caves | Encountered a Master Thief 14738 | -7/Lower Caves | Encountered a Master Thief 14738 | -7/Lower Caves | Spotted AT-RRX(f) 14739 | -7/Lower Caves | Encountered a Master Thief 14740 | -7/Lower Caves | Deploy-a-Sentry stolen by Master Thief 14741 | -7/Lower Caves | Deploy-a-Sentry stolen by Master Thief 14743 | -7/Lower Caves | Deploy-a-Sentry stolen by Master Thief 14743 | -7/Lower Caves | Field Lobotomy Kit stolen by Master Thief 14744 | -7/Lower Caves | Allies destroyed WT-C07(f) 14778 | -7/Lower Caves | Learned Factory security intel 14783 | -7/Lower Caves | Discovered new exit (range 5) 14794 | -7/Lower Caves | Identified exit to Zion 14799 | -7/Lower Caves | Entered Zion 14799 | -7/Zion | Accompanied by 2 allies 14838 | -7/Zion | Given the Hacking Drone Bay 14838 | -7/Zion | Found Prototype Device 14839 | -7/Zion | Identified Hacking Drone Bay 14888 | -7/Zion | Discovered new exit (range 27) 14910 | -7/Zion | Found CR-A16's Pointy Stick 15295 | -7/Zion | Learned Factory stockpile data 15360 | -7/Zion | Visited the Megawrench Repair Shop 15363 | -7/Zion | Megawrench repaired 11 parts 15913 | -7/Zion | Identified exit to Deep Caves 15970 | -7/Zion | Given A8's code to call for help 16688 | -7/Zion | Entered Proximity Caves 16688 | -6/Proximity Caves | Accompanied by 2 allies 16700 | -6/Proximity Caves | Attracted the attention of an 0b10 checkpoint 16778 | -6/Proximity Caves | Learned location of 1 exit from Factory 17364 | -6/Proximity Caves | Learned Factory stockpile data 17837 | -6/Proximity Caves | Discovered exit to Factory (range 46) 18132 | -6/Proximity Caves | Learned location of Extension (-6) 18155 | -6/Proximity Caves | Entered Factory 18155 | -6/Factory | Evolved 2 slots: Propulsion x2 18156 | -6/Factory | Identified exit to Factory 18776 | -6/Factory | Identified exit to Garrison 18776 | -6/Factory | Entered Garrison 18938 | -6/Garrison | Triggered checkpoint 18968 | -6/Garrison | Garrison Relay disabled 19025 | -6/Garrison | P-60 Hacker assimilated allied ZB-IHS(g) 19034 | -6/Garrison | Triggered checkpoint 19034 | -6/Garrison | Triggered checkpoint 19070 | -6/Garrison | Destroyed 10 combat bots 19159 | -6/Garrison | Triggered checkpoint 19236 | -6/Garrison | Lost 5 parts (2n2u1w) 19513 | -6/Garrison | Garrison Relay disabled 19573 | -6/Garrison | Discovered new exit (range 9) 19703 | -6/Garrison | Triggered checkpoint 19777 | -6/Garrison | Build established: Scavenger-Mutant 19840 | -6/Garrison | Triggered checkpoint 19917 | -6/Garrison | Lost 3 parts (1n1u1w) 20153 | -6/Garrison | Entered Extension 20219 | -6/Extension | Rescued a captive Derelict 20219 | -6/Extension | Rescued a captive Derelict 20227 | -6/Extension | Rescued a captive Derelict 20283 | -6/Extension | Lost 3 allies 20429 | -6/Extension | Rescued a captive Derelict 20503 | -6/Extension | First assault squad dispatched 20627 | -6/Extension | Energy Cycler disabled 20627 | -6/Extension | Rescued a captive Derelict 20627 | -6/Extension | Rescued a captive Derelict 20628 | -6/Extension | Rescued a captive Derelict 20628 | -6/Extension | Rescued a captive Derelict 20629 | -6/Extension | Rescued a captive Derelict 20629 | -6/Extension | Rescued a captive Derelict 20631 | -6/Extension | Rescued a captive Derelict 20634 | -6/Extension | Rescued A7 20638 | -6/Extension | Rescued a captive Derelict 20703 | -6/Extension | Build established: Mutant 20743 | -6/Extension | Crushed by falling debris 20744 | -6/Extension | System corruption reached 10% 21132 | -6/Extension | Discovered new exit (range 6) 21161 | -6/Extension | Entered Cetus 21161 | -6/Cetus | Accompanied by 10 allies (A7) 21166 | -6/Cetus | Acquired a Cetus Manufacturing Module code from A7 21182 | -6/Cetus | Spotted Cetus Guard 21182 | -6/Cetus | Spotted Cetus Guard 21183 | -6/Cetus | Assimilated Cetus Guard with FLK Orb 21186 | -6/Cetus | Assimilated Cetus Guard with FLK Orb 21187 | -6/Cetus | Build established: Commander-Mutant 21190 | -6/Cetus | Spotted Cetus Guard 21193 | -6/Cetus | Spotted Cetus Guard 21205 | -6/Cetus | Allies destroyed Cetus Guard 21294 | -6/Cetus | Started Cetus Manufacturing Module 21316 | -6/Cetus | Escorted A7 to Cetus Mainframe 21319 | -6/Cetus | Manufactured an Enhanced Grunt 21344 | -6/Cetus | Manufactured an Enhanced Grunt 21369 | -6/Cetus | Manufactured an Enhanced Grunt 21394 | -6/Cetus | Manufactured an Enhanced Grunt 21419 | -6/Cetus | Manufactured an Enhanced Grunt 21441 | -6/Cetus | Discovered new exit (range 15) 21470 | -6/Cetus | Spotted Cetus Guard 21470 | -6/Cetus | Spotted Cetus Guard 21473 | -6/Cetus | Spotted Cetus Guard 21475 | -6/Cetus | Assimilated Cetus Guard with FLK Orb 21476 | -6/Cetus | Allies destroyed Cetus Guard 21478 | -6/Cetus | Assimilated Cetus Guard with FLK Orb 21481 | -6/Cetus | Spotted Cetus Guard 21486 | -6/Cetus | Allies destroyed Cetus Guard 21487 | -6/Cetus | Discovered exit to Factory (range 16) 21505 | -6/Cetus | Met Revision 17 21827 | -6/Cetus | Entered Archives 21827 | -6/Archives | Accompanied by 15 allies (A7) 21832 | -6/Archives | Received a hacking code to weaken MAIN.C 21852 | -6/Archives | Core integrity fell below 50% 21865 | -6/Archives | Discovered new exit (range 16) 21973 | -6/Archives | Discovered new exit (range 14) 22140 | -6/Archives | Discovered exit to Factory (range 13) 22303 | -6/Archives | Entered Hub_04(d) 22303 | -6/Hub_04(d) | Accompanied by 12 allies 22317 | -6/Hub_04(d) | Discovered exit to Factory (range 15) 22431 | -6/Hub_04(d) | Garrison activated, responded to threat 22556 | -6/Hub_04(d) | Allies destroyed Cetus Guard 22587 | -6/Hub_04(d) | Lost 4 allies 22653 | -6/Hub_04(d) | First assault squad dispatched 22679 | -6/Hub_04(d) | Network Hub disabled 22798 | -6/Hub_04(d) | Spotted Lightning 22798 | -6/Hub_04(d) | Spotted Lightning 22798 | -6/Hub_04(d) | Spotted Lightning 22812 | -6/Hub_04(d) | Assimilated Lightning with FLK Orb 22837 | -6/Hub_04(d) | Destroyed Lightning 22843 | -6/Hub_04(d) | Destroyed Lightning 22868 | -6/Hub_04(d) | Lost 5 allies 22871 | -6/Hub_04(d) | Found Prototype Device 22871 | -6/Hub_04(d) | Identified Exp. EM Disruption Field 22877 | -6/Hub_04(d) | Found Prototype Energy Cannon 22877 | -6/Hub_04(d) | Identified EMDS 22885 | -6/Hub_04(d) | Found Prototype Processor 22886 | -6/Hub_04(d) | Identified Exp. Targeting Computer 22898 | -6/Hub_04(d) | Network Hub disabled 22983 | -6/Hub_04(d) | Entered Factory 22983 | -5/Factory | Accompanied by 2 allies 22983 | -5/Factory | Evolved 2 slots: Utility x1, Weapon x1 22984 | -5/Factory | Identified exit to Upper Caves 23158 | -5/Factory | Identified exit to Factory 23276 | -5/Factory | Build established: Scavenger-Tank 23299 | -5/Factory | Fabricated B-60 Warrior (x3) 24676 | -5/Factory | Repaired Arm. Huge Wheel 24706 | -5/Factory | Entered Upper Caves 25775 | -5/Upper Caves | Core integrity fell below 50% 25947 | -5/Upper Caves | Discovered new exit (range 15) 25955 | -5/Upper Caves | Attracted the attention of an 0b10 outpost 26035 | -5/Upper Caves | Identified exit to Upper Caves 26066 | -5/Upper Caves | Learned Research trap positions 26066 | -5/Upper Caves | Learned Extension emergency access door positions 26066 | -5/Upper Caves | Learned Research security intel 26180 | -5/Upper Caves | Entered another Upper Caves area 26180 | -5/Upper Caves | Accompanied by 2 allies 26190 | -5/Upper Caves | Learned location of 1 exit from Factory 26199 | -5/Upper Caves | Spotted B-75 Beast 26303 | -5/Upper Caves | Discovered exit to Factory (range 5) 26751 | -5/Upper Caves | Discovered new exit (range 9) 26777 | -5/Upper Caves | Identified exit to Warlord 26780 | -5/Upper Caves | Entered Warlord 26780 | -5/Warlord | Accompanied by 2 allies 26829 | -5/Warlord | System corruption cleaned by Quarantine Array 27092 | -5/Warlord | Found Signal Generator 27102 | -5/Warlord | Discovered new exit (range 74) 27218 | -5/Warlord | Met Warlord 27243 | -5/Warlord | Warlord's base attacked by MAIN.C 27298 | -5/Warlord | Build established: Commander-Mutant 27348 | -5/Warlord | Found Prototype Piercing Weapon 27348 | -5/Warlord | Identified Vortex Lance 27355 | -5/Warlord | Found Prototype Launcher 27355 | -5/Warlord | Identified Vortex Catalyst Activator 27363 | -5/Warlord | Found Vortex Lance 27517 | -5/Warlord | Found Prototype Reactor 27521 | -5/Warlord | Found Prototype Device 27521 | -5/Warlord | Identified Exp. Cloaking Device 27544 | -5/Warlord | Found Prototype Hackware 27544 | -5/Warlord | Identified Ghost Barrier 27553 | -5/Warlord | Found Prototype Processor 27553 | -5/Warlord | Identified Exp. Armor Integrity Analyzer 27593 | -5/Warlord | Warlord forces counterattacked 27686 | -5/Warlord | Spotted Striker 27689 | -5/Warlord | Allies destroyed Striker 27705 | -5/Warlord | Found Prototype Ballistic Cannon 27705 | -5/Warlord | Identified Hvy. Autocannon 27727 | -5/Warlord | Spotted Executioner 27728 | -5/Warlord | Destroyed Executioner 27753 | -5/Warlord | Found Hvy. Autocannon 27755 | -5/Warlord | Lost 8 allies 27763 | -5/Warlord | Spotted Striker 27765 | -5/Warlord | Spotted B-86 Titan 27776 | -5/Warlord | Allies destroyed Striker 27783 | -5/Warlord | Spotted B-75 Beast 27790 | -5/Warlord | Allies destroyed B-86 Titan 27799 | -5/Warlord | Entered Proximity Caves 27799 | -4/Proximity Caves | Accompanied by 1 ally 27822 | -4/Proximity Caves | Lost 6 allies 28048 | -4/Proximity Caves | Build established: Hacker-Gunner 28406 | -4/Proximity Caves | Spotted B-86 Titan 28844 | -4/Proximity Caves | Learned Research security intel 29180 | -4/Proximity Caves | Discovered exit to Factory (range 8) 29198 | -4/Proximity Caves | Entered Factory 29198 | -4/Factory | Accompanied by 1 ally 29198 | -4/Factory | Evolved 2 slots: Utility x2 29199 | -4/Factory | Identified exit to Upper Caves 29333 | -4/Factory | Discovered exit to Upper Caves (range 9) 29344 | -4/Factory | Entered Upper Caves 29344 | -4/Upper Caves | Spotted CD-CSS(f) 29344 | -4/Upper Caves | Destroyed CD-CSS(f) 29482 | -4/Upper Caves | Build established: Scavenger-Gunner 29515 | -4/Upper Caves | Acquired the password to a Derelict Tinkerer's latest research 30109 | -4/Upper Caves | Discovered new exit (range 7) 30127 | -4/Upper Caves | Identified exit to Upper Caves 30132 | -4/Upper Caves | Learned location of Quarantine (-3) 30149 | -4/Upper Caves | Entered another Upper Caves area 30149 | -4/Upper Caves | Accompanied by 1 ally 30261 | -4/Upper Caves | Discovered new exit (range 11) 30299 | -4/Upper Caves | Identified exit to Research 30326 | -4/Upper Caves | P-70 Sage assimilated allied XI-KQ0(k) 30423 | -4/Upper Caves | Learned location of Testing (-2) 30621 | -4/Upper Caves | Learned Research terminal intel 30658 | -4/Upper Caves | Learned Research garrison access intel 31429 | -4/Upper Caves | Discovered new exit (range 9) 31451 | -4/Upper Caves | Entered Zhirov 31451 | -4/Zhirov | Discovered new exit (range 3) 31485 | -4/Zhirov | Met Zhirov 31574 | -4/Zhirov | Zhirov requested help retrieving the SGEMP Prototype 31603 | -4/Zhirov | Found Alien Artifact 31603 | -4/Zhirov | Identified Integrated Dissipator 31603 | -4/Zhirov | Installed Integrated Dissipator, increased core heat dissipation (+20) 31755 | -4/Zhirov | Found Alien Artifact 31818 | -4/Zhirov | Entered Proximity Caves 32337 | -3/Proximity Caves | Spotter reported a threat 33183 | -3/Proximity Caves | Discovered exit to Research (range 15) 33213 | -3/Proximity Caves | Entered Research 33213 | -3/Research | Accompanied by 1 ally 33213 | -3/Research | Evolved 2 slots: Power x1, Utility x1 33214 | -3/Research | Loaded intel: 78 trap records 33214 | -3/Research | Identified Vortex Chain Reactor 33216 | -3/Research | Loaded intel: 22 terminal locations 33217 | -3/Research | Loaded intel: 4 garrison access locations 33284 | -3/Research | Identified exit to Armory 33284 | -3/Research | Identified exit to Quarantine 33286 | -3/Research | Identified exit to Research 33413 | -3/Research | Revision forces began assault on 0b10 33431 | -3/Research | Met up with Revision 17++ 33745 | -3/Research | Build established: Hacker-Gunner 33913 | -3/Research | Research terminal network offline 34130 | -3/Research | Fabricated Imp. Heavy Siege Treads (x1) 34183 | -3/Research | Spotted Striker 34290 | -3/Research | Spotted Striker 34782 | -3/Research | Build established: Scavenger-Gunner 34987 | -3/Research | Spotted B-86 Titan 35129 | -3/Research | Spotted Striker 35136 | -3/Research | Destroyed Striker 35235 | -3/Research | Spotted Striker 35241 | -3/Research | Destroyed Striker 35305 | -3/Research | Entered Quarantine 35811 | -3/Quarantine | Spotted Alpha 7 35940 | -3/Quarantine | Scanned by Researcher 35963 | -3/Quarantine | Destroyed Alpha 7 35970 | -3/Quarantine | Garrison activated, responded to threat 36009 | -3/Quarantine | Destroyed 10 combat bots 36039 | -3/Quarantine | Found Alien Artifact 36039 | -3/Quarantine | Identified Phase Redirector 36055 | -3/Quarantine | First assault squad dispatched 36105 | -3/Quarantine | Destroyed 8 combat bots 36515 | -3/Quarantine | Discovered exit to Research (range 15) 36582 | -3/Quarantine | Entered Research 36582 | -2/Research | Warlord forces began assault on 0b10 36582 | -2/Research | Evolved 2 slots: Utility x1, Weapon x1 36594 | -2/Research | Identified exit to Testing 36607 | -2/Research | Distinguished unit "Offensive Angels" dispatched to help 36692 | -2/Research | Research machine network offline 36949 | -2/Research | Borebot progress halted 36982 | -2/Research | Build established: Hacker-Gunner 37023 | -2/Research | Borebot progress halted 37412 | -2/Research | Borebot progress halted 37902 | -2/Research | Spotted Executioner 37908 | -2/Research | Destroyed Executioner 37913 | -2/Research | Spotted Executioner 37920 | -2/Research | Destroyed Executioner 37921 | -2/Research | Lost 3 allies 37944 | -2/Research | Destroyed 7 combat bots 38085 | -2/Research | Spotted Striker 38085 | -2/Research | Spotted Striker 38094 | -2/Research | Met up with Warlord 38252 | -2/Research | Warlord destroyed during the assault 38479 | -2/Research | Found Prototype Device 38479 | -2/Research | Identified Adv. Kinecellerator 38482 | -2/Research | Found Prototype Processor 38482 | -2/Research | Identified Exp. Core Analyzer 38616 | -2/Research | Entered Testing 38766 | -2/Testing | Build established: Scavenger-Gunner 38802 | -2/Testing | Found Prototype Device 38802 | -2/Testing | Identified 2N-1CE's Frost Array 38852 | -2/Testing | Found Prototype Energy Cannon 38852 | -2/Testing | Identified Imp. Potential Cannon 38857 | -2/Testing | Found Prototype Energy Cannon 38857 | -2/Testing | Identified Potential Cannon 38941 | -2/Testing | System corruption reached 10% 39294 | -2/Testing | Found Prototype Energy Cannon 39294 | -2/Testing | Identified Hpw. Disruptor Cannon 39368 | -2/Testing | Found Prototype Energy Gun 39368 | -2/Testing | Identified Hyp. EM Gauss Rifle 39603 | -2/Testing | Build established: Hacker-Gunner 39626 | -2/Testing | Discovered new exit (range 7) 39719 | -2/Testing | Found Prototype Processor 39719 | -2/Testing | Identified Exp. Target Analyzer 39733 | -2/Testing | Found Hvy. Reflective Plating 40011 | -2/Testing | Build established: Scavenger-Gunner 40211 | -2/Testing | Fabricated Adv. Heavy Siege Treads (x1) 40516 | -2/Testing | Found Prototype Launcher 40516 | -2/Testing | Identified Point Singularity Launcher 40571 | -2/Testing | Spotted Striker 40571 | -2/Testing | Spotted Striker 40582 | -2/Testing | Destroyed Striker 40585 | -2/Testing | Spotted Alpha 7 40586 | -2/Testing | Destroyed Striker 40595 | -2/Testing | Destroyed Alpha 7 40669 | -2/Testing | Stole the SGEMP Prototype 40840 | -2/Testing | Found Prototype Slashing Weapon 40840 | -2/Testing | Identified Molecular Scythe 41080 | -2/Testing | Entered Access 41080 | -1/Access | Evolved 2 slots: Utility x2 41081 | -1/Access | Delivered the SGEMP Prototype to Zhirov 41081 | -1/Access | Zhirov transferred Access data 41082 | -1/Access | Loaded intel: 98 machine locations 41082 | -1/Access | Loaded intel: 57 trap records 41082 | -1/Access | Identified exit to Surface 41082 | -1/Access | Discovered exit to Surface (range 113) 41082 | -1/Access | Identified exit to Command 41082 | -1/Access | Discovered exit to Command (range 221) 41113 | -1/Access | Found Quantum Capacitor 41253 | -1/Access | Spotted B-99 Colossus 41271 | -1/Access | Destroyed B-99 Colossus 41273 | -1/Access | Zhirov warped through subspace 41281 | -1/Access | Found Deep Network Scanner 41283 | -1/Access | Found Quantum Router 41326 | -1/Access | Found Prototype Ballistic Gun 41330 | -1/Access | Found Prototype Ballistic Gun 41383 | -1/Access | Garrison activated, responded to threat 41459 | -1/Access | Local machine network offline 41567 | -1/Access | Build established: Hacker-Gunner 41830 | -1/Access | First assault squad dispatched 41867 | -1/Access | Destroyed 15 combat bots 41873 | -1/Access | Lost 3 parts (1n2u) 41992 | -1/Access | Garrison activated, responded to threat 42356 | -1/Access | Found Prototype Launcher 42356 | -1/Access | Identified Tactical Quantum Warhead 42508 | -1/Access | Destroyed 9 combat bots 42517 | -1/Access | Lost 8 parts (1p2n3u2w) 42635 | -1/Access | Destroyed 12 combat bots 42767 | *** | Escaped! Last Messages --------------- 42656_ U-05 Engineer lays Concrete. 42656_ K-01 Serf collects debris. 42657_ U-05 Engineer lays Concrete. 42658_ K-01 Serf collects debris. 42658_ U-05 Engineer lays Concrete. 42683_ Acquired Quantum Reactor. 42705_ ALERT: Rogue bot located, Q-Series report to Access Zone 1D. 42707_ System corrupted: Component data lost. 42725_ Dismantling Sealed Barrier with Imp. Plasma Cutter. 42754_ System corrupted: Substantial component data lost. 42755_ Dismantling Sealed Barrier with Imp. Plasma Cutter. 42755_ Sealed Barrier dismantled. 42762_ Main Access Shell breached. [Achievement: Epsilon Run] [Achievement: Victory By Combat] [Achievement: Overachiever] Map ----- +----------------------------------------------------+ | ## ########### ## "" ## ### | | ## # """"" # ## "" ## # | | ## # ""Y"" # ## "" ## # | | ## # + ## "" ## # | | ## # # ## "" ## # | | #+####### # # ## " ## # | | ^ ^ + # ## ## # | | ^ ^ # # ## ## # | | ^ ^ # # ## ## # | | !* ####################### ## # | | ! ########################+######## ### | | ! | | * | | ######### ""################### | | ################# ""################ | | # ####### ""################ | | # ####### T################ " | | # " ####### ""################ " | | + """ ####### ""################ " | | # """ ####### ""################ " | | # " ######""" """"""############### " | | # ####### ################ | | # ####### ################ | | ################# "" """ ################### | | ################# " " ########### | | ################# " @" " ########### | | ################# " "" " ########### | | ################## " " ########### | | ################## """""" ###############+### | | ################## ########## ## | | #+###################""""""""""########## ## | | ################""""""""""########## ## | | ################""""""""""########## ## | | ################""""""""""####### | | ################ ####### ##### | | ################ ####### ##### | | ##################### ###### ##### | | ############# ###### ##### | | ############# ###### ##### | | ############# ###### | | ############# ###### ### | | ################ ######### ### | | ### ################ ######### ### | | ### ## ### ######### ### | | ## # ### ######### ### | | ## # ### ######### | | # ### ######### | | + ### ######### | | # ### ######### | | ## # ### ########## | +----------------------------------------------------+ Best States ------------- Heat Dissipation 262 Coolant Potential 240 Energy Generation 55 Energy Capacity 1200 Matter Stores 364 Matter Capacity 400 Sight Range 16 Robot Scan Range 16 Terrain Scan Density 10 Jamming Range 16 Base Temperature (-) 200 Corruption Containment 12 Corruption Block 17 Armor Coverage 1200 Resistance: KI 20 Resistance: TH 25 Resistance: EM 75 Core Shielding 20 Point Defense Rating 240 Weapon Cycling 25 Melee Speed Boost 30 Evasion (%) 41 Targeting Accuracy 12 Target Analysis 14 Core Analysis 8 Armor Integrity Analysis 50 Recoil Reduction 6 Kinecelleration 50 Offensive Hacking 25 Defensive Hacking 25 Authchip Count 1 Trap Extractor Capacity 6 Item Schematics ----------------- Hrd. Heavy Armor Plating | -8/Materials | Scanalyzed Imp. Cooling System | -8/Materials | Scanalyzed Gravmag System | -7/Zion | Archive Imp. Hacking Suite | -7/Zion | Archive Kinecellerator | -7/Zion | Archive Imp. Core Shielding | -7/Zion | Archive Adv. ECM Suite | -7/Zion | Archive Imp. Medium Armor Plating | -7/Zion | Archive Enh. Optical Array | -7/Zion | Archive Neutrino Core | -7/Zion | Archive Fission Core | -7/Zion | Archive Adv. Trap Extractor | -7/Zion | Archive Remote Datajack | -7/Zion | Archive Mak. System Shield | -7/Zion | Archive Focal Shield | -7/Zion | Archive Great Axe | -7/Zion | Archive Phase Cannon | -7/Zion | Archive Lrn. Phase Cannon | -7/Zion | Archive Micro-nuke Launcher | -4/Factory | Hacked Imp. Heavy Siege Treads | -4/Factory | Hacked Assault Drone Bay | -4/Zhirov | Free Exp. Heat Sink | -4/Zhirov | Free Exp. Optical Array | -4/Zhirov | Free Imp. Arc Thrower | -4/Zhirov | Free Adv. Force Field | -3/Research | Scanalyzed Electron Diverter | -3/Quarantine | Archive Enh. Armored Leg | -3/Quarantine | Archive Prc. Matter Filter | -3/Quarantine | Archive Adv. Heavy Siege Treads | -2/Testing | Hacked Centrium Light Armor Plating | -2/Testing | Archive Prc. Phase Gun | -2/Testing | Archive Exp. Cooling System | -2/Testing | Archive Exp. Weapon Cycler | -2/Testing | Hacked Robot Schematics ------------------ L-31 Rogue | -7/Zion | Archive S-27 Virus | -7/Zion | Archive B-36 Bruiser | -7/Zion | Archive K-01 Serf | -3/Quarantine | Archive A-02 Transporter | -3/Quarantine | Archive H-88 Terminator | -2/Testing | Archive Fabricated ------------ B-60 Warrior | x3 | -5/Factory | Preloaded Imp. Heavy Siege Treads | x1 | -3/Research Adv. Heavy Siege Treads | x1 | -2/Testing Alien Tech Used ----------------- Integrated Dissipator Phase Redirector Achievements -------------- Epsilon Run Equal Opportunity Bot Generalissimo Max Potential No Explosion For You Overachiever Short-term Sacrifices Special Delivery Victory By Combat Challenges ------------ None Game ------ Seed ArmoredCoolingTriangulator Manual? 0 Play Time 07:46:40 Cumulative 106.2 hours Start 2024.05.17 @ 17:01:14 End 2024.05.22 @ 17:51:59 Sessions 19 Manual Loads 0 Difficulty Rogue Special Mode None Game No. 51 Rogue 51 Adventurer 0 Explorer 0 Win Type 0 Total 2 Types 1/0/1/0/0/0/0/0/0 Lore% 57 Gallery% 70 Achievement% 52 Wizard Run 0 Options --------- Layout 1 ASCII 0 Keyboard 0 Movement Mouse Keybinds 0 Fullscreen 2 Font 18/SmallcapsGlow Map View 50x40 Zoom Use 0% Tactical HUD 1 Map Filters NONE Filters NONE Steam 1 RUN: dc6c164e-7199-42b7-8604-1554d1cb9751